Cogmind - Beta 15 @@@ ROGUE MODE // 2025.08.22 @ 16:14:00 Player: N.W.L. Result: Destroyed by Q563-i with Advanced KE Penetrator Performance ------------- Evolutions (7) 3500 Regions Visited (32) 6400 Robots Destroyed (415) 2075 Value Destroyed (24472) 24472 Prototype IDs (58) 1160 Alien Tech Used (5) 1000 Bonus (24889) 24889 TOTAL SCORE: 63496 Bonus ------- High Alert Combat Kills 5235 Follower Combat Kills 8021 Entered Garrisons 1600 Used RIF Installer 5000 Network Hubs Disabled 200 Aligned with FarCom 300 Built Enhanced Grunts 300 A7 Reached Mainframe 300 Met R17 at Cetus 500 Used Core Reset Matrix 3000 Met R17 at Research 2000 Scanned by Researcher 500 Met Sigix 2000 Friendly Fire -4067 Cogmind --------- Core Integrity 0/1300 Matter 300/300 Energy 34/100 System Corruption 43% Temperature Cool (21) Movement Core (50) Location -3/Quarantine Parts ------- > --- POWER (3) -------- (None) > --- PROPULSION (5) --- (None) > --- UTILITY (10) ----- (None) > --- WEAPON (3) ------- (None) > --- INVENTORY (5) ---- Cesium-ion Thruster Sigix Broadsword Sigix Containment Pod Peak State ------------ > --- POWER ------------ Hybrid Antimatter Reactor Particle Reactor Particle Reactor > --- PROPULSION ------- Biometal Medium Treads Armored Heavy Treads Armored Heavy Treads > --- UTILITY ---------- Advanced Heat Sink Advanced Cooling System Advanced Coolant Injector Huge Storage Unit Advanced Signal Interpreter Advanced Target Analyzer Advanced Powered Armor Experimental Thermal Shield Advanced Force Field Hacking Suite > --- WEAPON ----------- Heavy Dispersion Rifle Heavy Dispersion Rifle Compact Mass Driver > --- INVENTORY -------- Improved Heavy Treads Improved Heavy Treads Matter Compressor Advanced Force Field Long-range Tractor Beam Dimensional Node Initializer Dimensional Node Initializer Transdimensional Reconstructor High-powered Transdimensional Reconstructor High-powered Transdimensional Reconstructor Heavy Dispersion Rifle Compact HERF Cannon Nova Cannon XL Autogun Array Heavy Rocket Launcher Advanced Datajack Sigix Broadsword Deploy-a-Sentry Sigix Corpse [Rating: 172] Favorites ----------- Power Antimatter Reactor Engine Improved Ion Engine Power Core Neutrino Core Reactor Antimatter Reactor Propulsion Improved Heavy Treads Treads Improved Heavy Treads Leg Flexi-carbon Leg Wheel Centrium Wheel Hover Unit Hover Unit Flight Unit Field Propulsion Drive Utility Huge Storage Unit Device Advanced Cooling System Storage Huge Storage Unit Processor Advanced Targeting Computer Hackware Relay Coupler [Grunt] Protection Layered Medium Armor Plating Weapon Plasma Cannon Energy Gun Heavy Dispersion Rifle Energy Cannon Plasma Cannon Ballistic Gun Enhanced Coil Gun Ballistic Cannon Enhanced Hardcell Cannon Launcher Heavy Rocket Launcher Special Weapon Improved Remote Datajack Slashing Weapon Power Sword Special Melee Weapon Advanced Datajack Build | -11 -10 -10 -10 -9 -8 -8 -8 -8 -8 -8 -7 -7 -7 -7 -6 -6 -6 -6 -6 -6 -6 -6 -6 -6 -5 -5 -5 -5 -4 -4 -3 -3 ------- Run | Yrd Mat Min Exi Min Mat Gar Mat Gar Mat Gar Fac Was Fac Gar Fac Was Fac Gar Fac Ext Cet Arc Hub Gar Fac Was Fac Gar Fac Gar Res Qua Slots Evolved 14 | . . . . . 4 . . . . . 2 . . . 2 . . . . . . . . . 2 . . . 2 . 2 . Power 2 | . . . . . . . . . . . . . . . 1 . . . . . . . . . 1 . . . . . . . Propulsion 3 | . . . . . 1 . . . . . 1 . . . . . . . . . . . . . . . . . . . 1 . Utility 8 | . . . . . 2 . . . . . 1 . . . 1 . . . . . . . . . 1 . . . 2 . 1 . Weapon 1 | . . . . . 1 . . . . . . . . . . . . . . . . . . . . . . . . . . . Parts Attached 299 | . 1 . 4 5 14 7 9 3 7 16 11 7 7 12 5 3 2 11 2 7 10 . 3 23 14 5 3 25 9 26 10 38 Power 34 | . . . . . 3 . . . . 3 . 1 . 1 2 1 . 2 . . 2 . . 2 3 2 . 4 1 2 2 3 Engine 8 | . . . . . 3 . . . . 3 . . . . . . . . . . . . . 1 1 . . . . . . . Core 11 | . . . . . . . . . . . . . . . 1 . . . . . . . . . 2 . . 4 1 2 . 1 Reactor 15 | . . . . . . . . . . . . 1 . 1 1 1 . 2 . . 2 . . 1 . 2 . . . . 2 2 Propulsion 51 | . . . 1 2 4 3 4 . 1 2 3 2 1 4 . . . . . . 1 . . 5 . 1 . 2 1 5 2 7 Treads 43 | . . . . 2 4 3 4 . 1 2 3 2 1 4 . . . . . . 1 . . 4 . 1 . 2 1 5 1 2 Leg 3 | . . . . . . . . . . . . . . . . . . . . . . . . 1 . . . . . . . 2 Wheel 1 | . . . . . . . . . . . . . . . . . . . . . . . . . . . . . . . 1 . Hover 2 | . . . 1 . . . . . . . . . . . . . . . . . . . . . . . . . . . . 1 Flight 2 | . . . . . . . . . . . . . . . . . . . . . . . . . . . . . . . . 2 Utility 142 | . 1 . 3 1 4 1 2 2 2 7 6 3 3 6 2 1 2 8 1 4 4 . 3 12 7 1 2 12 7 10 5 20 Device 51 | . . . . 1 3 1 . 2 1 1 4 1 . 3 . 1 1 2 1 1 1 . . 7 3 . . 2 1 3 3 8 Storage 10 | . . . 2 . . . . . . . . 1 1 . . . . . . . 1 . . . 1 . . 1 . . . 3 Processor 9 | . . . . . . . 1 . . . . 1 . . . . . . . . . . . . . . . . . 1 . 6 Hackware 52 | . . . . . . . 1 . 1 6 2 . 1 2 2 . . 6 . 3 . . 1 5 2 1 1 6 4 5 2 1 Protection 20 | . 1 . 1 . 1 . . . . . . . 1 1 . . 1 . . . 2 . 2 . 1 . 1 3 2 1 . 2 Artifact . | . . . . . . . . . . . . . . . . . . . . . . . . . . . . . . . . . Weapon 72 | . . . . 2 3 3 3 1 4 4 2 1 3 1 1 1 . 1 1 3 3 . . 4 4 1 1 7 . 9 1 8 Energy Gun 13 | . . . . 1 . . . . 2 . 1 . . . . . . . . 2 . . . . . . 1 3 . . . 3 Energy Cannon 11 | . . . . . . 1 3 . 1 . . . . . . . . . 1 . 1 . . 1 1 . . 1 . . 1 . Ballistic Gun 27 | . . . . 1 3 2 . . 1 1 . 1 2 1 1 . . . . . 2 . . 2 . . . 1 . 9 . . Ballistic Cannon 9 | . . . . . . . . . . 2 . . . . . 1 . . . . . . . . 3 . . 2 . . . 1 Launcher 1 | . . . . . . . . . . . . . . . . . . 1 . . . . . . . . . . . . . . Special Weapon 7 | . . . . . . . . 1 . 1 . . 1 . . . . . . . . . . 1 . 1 . . . . . 2 Impact Weapon . | . . . . . . . . . . . . . . . . . . . . . . . . . . . . . . . . . Slashing Weapon 3 | . . . . . . . . . . . 1 . . . . . . . . 1 . . . . . . . . . . . 1 Piercing Weapon . | . . . . . . . . . . . . . . . . . . . . . . . . . . . . . . . . . Special Melee Weapon 1 | . . . . . . . . . . . . . . . . . . . . . . . . . . . . . . . . 1 Unidentified Prototypes 20 | . . . . . . . . . 3 . . 1 1 . 1 . . . 1 . 6 . . 1 1 . . . . 1 . 4 Corrupted Parts 3 | . . . . . . . . . . 1 . . . . . . . . . . . . . 1 . . . 1 . . . . System Corruption 17 | . . . . . . . . . . 5 . . . . . . . . . . . . . 9 . . . 3 . . . . Parts Lost 58 | . . . . . . . . . 1 1 2 . . . . 1 . . 1 . . . . 5 2 . . 7 5 9 . 24 Power 11 | . . . . . . . . . . 1 . . . . . . . . . . . . . 1 2 . . 2 . 2 . 3 Propulsion 12 | . . . . . . . . . . . 1 . . . . . . . . . . . . 1 . . . 1 1 . . 8 Utility 26 | . . . . . . . . . 1 . 1 . . . . 1 . . . . . . . 1 . . . 4 3 5 . 10 Weapon 9 | . . . . . . . . . . . . . . . . . . . 1 . . . . 2 . . . . 1 2 . 3 Highest Loss Streak 5 | . . . . . . . . . 1 1 1 . . . . 1 . . 1 . . . . 1 1 . . 4 2 3 . 5 To Critical Strikes 1 | . . . . . . . . . . . . . . . . . . . . . . . . . . . . 1 . . . . Average Backups 14 | . . 1 5 8 7 8 7 9 9 9 9 15 17 17 17 17 15 15 15 14 14 14 14 16 17 17 17 18 17 18 18 16 Power . | . . . 2 1 1 1 . . . . . 2 2 1 1 1 2 1 1 1 1 1 1 1 . . . . 1 . . . Propulsion 1 | . . . . . . 1 1 . . . . 2 2 1 2 2 2 2 2 2 2 2 2 1 2 2 2 1 . 1 2 1 Utility 7 | . . 1 . 3 2 3 3 4 5 5 4 4 6 7 7 6 6 6 7 6 6 5 5 7 10 10 10 10 11 11 10 5 Weapon 4 | . . . 1 2 2 2 2 3 3 3 4 5 5 5 6 6 5 4 4 5 4 5 5 5 3 4 4 4 3 3 4 4 Tool/Special . | . . . . . . . . . . . . . . . . . . . . . . . . . . . . . . . . . Unused Backups 53 | . . . . 2 1 . 3 2 . 1 1 1 4 3 . . . 1 . 1 . 1 . 4 2 . 2 5 1 5 2 11 Power 7 | . . . . 2 . . 1 . . . . . 1 . . . . 1 . . . . . . 1 . . . . 1 . . Propulsion 9 | . . . . . . . 1 . . . . . . 2 . . . . . . . . . 1 . . . . . 3 2 . Utility 25 | . . . . . 1 . . 2 . 1 1 1 2 1 . . . . . 1 . 1 . 2 . . 1 4 1 1 . 5 Weapon 7 | . . . . . . . . . . . . . 1 . . . . . . . . . . . . . 1 1 . . . 4 Tool/Special 5 | . . . . . . . 1 . . . . . . . . . . . . . . . . 1 1 . . . . . . 2 Average Slot Usage (%) 86 | . 4 14 38 79 93 99 100 100 98 94 96 89 86 83 84 78 86 85 85 85 86 86 80 82 86 88 87 81 87 87 89 80 Engine 1 | . . . . . 6 9 9 9 9 8 7 1 . . . . . . . . . . . 1 . . . . . . . . Core 1 | . . . . . . . . . . . . . . . 1 . . . . . . . . . 4 1 . 5 10 9 4 . Reactor 7 | . . . . . . . . . . . . 5 7 7 9 13 13 13 13 13 13 13 13 10 10 15 17 10 5 4 9 12 Treads 15 | . . . . 24 26 27 27 27 27 27 28 20 19 14 13 13 13 13 13 13 13 13 13 12 11 11 11 11 9 9 13 12 Device 15 | . . . . 12 17 18 18 18 16 11 10 22 19 21 18 21 26 17 13 11 14 13 10 13 9 11 11 11 11 20 22 20 Storage 7 | . . . 10 14 9 9 9 9 9 9 7 7 7 7 6 6 6 6 6 6 8 13 6 11 10 11 8 5 5 5 4 4 Processor 1 | . . . . . . . 2 9 9 4 . . . . . . . . . . . . . . . . . . . . . 3 Hackware 10 | . . . . . . . 5 . . 11 17 7 7 1 13 2 . 8 13 19 12 6 9 10 13 11 12 13 23 14 18 9 Protection 3 | . 4 14 15 1 8 9 . . . . . . 1 6 . 1 6 6 5 2 4 6 6 1 5 5 4 4 3 4 . 3 Energy Gun 1 | . . . . 11 8 7 . . . . 2 . . . . . . . . 8 5 . . . . . 1 2 4 . . 3 Energy Cannon 4 | . . . . . . . 21 26 22 5 . . . . . 1 . . 3 3 2 . . 2 5 2 8 . . . 1 2 Ballistic Gun 7 | . . . . 12 15 19 5 . 2 6 10 13 18 19 18 10 9 13 9 2 9 14 16 11 . . . 1 . 10 4 2 Ballistic Cannon 1 | . . . . . . . . . . 3 3 . . 2 . . . 2 . . . . . . 3 7 1 6 7 . . . Special Weapon 2 | . . . . . . . . . 1 5 5 6 3 . 1 4 6 3 4 3 . . . 1 2 2 4 1 2 1 3 1 Peak Build Rating 172 | . 1 1 10 19 37 40 43 46 40 41 48 76 79 85 97 99 102 100 98 98 120 120 117 122 122 124 125 127 127 128 137 172 Average Rating 91 | . . 1 6 17 31 36 41 40 39 37 44 66 72 81 90 92 98 98 96 94 108 117 114 108 113 121 119 115 119 120 131 142 On Entrance 72 | . . 1 1 10 19 37 37 43 40 38 40 45 65 77 83 90 99 98 97 96 95 120 117 99 117 121 121 118 112 116 119 137 Naked Turns 33 | . 17 . . . . . . . . . . . . . . . . . . . . . . . . . . . . . . 16 Heaviest Build 194 | . 1 1 21 29 47 53 51 52 55 53 51 114 120 142 129 148 151 164 165 169 157 157 184 157 186 181 185 191 184 174 166 194 Greatest Support 185 | 3 3 3 6 40 63 63 65 62 62 60 85 140 140 150 150 150 150 150 150 150 155 155 155 155 150 150 150 150 145 135 155 185 Greatest Overweight (x) 5 | . . . 3 3 1 . . . 1 . . . . 1 . . 1 1 1 1 1 1 1 1 1 1 1 2 1 1 1 5 Average Overweight (x) . | . . . 1 . . . . . . . . . . . . . . 1 . . . . . . . 1 1 . 1 1 . . Largest Inventory Capacity 25 | 5 5 5 15 15 15 15 15 15 15 15 15 25 25 25 25 25 25 25 25 25 25 25 25 25 25 25 25 25 25 25 25 25 Average Capacity 22 | 5 5 5 12 15 15 15 15 15 15 15 15 23 25 25 25 25 25 25 25 25 25 25 25 25 25 25 25 25 25 25 25 24 Most Carried 25 | . 1 2 12 15 15 15 15 15 15 15 15 25 25 25 25 25 25 25 25 25 25 25 25 25 25 25 25 25 25 25 25 25 Average Carried 21 | . . 1 7 14 13 15 14 14 14 14 14 22 24 24 24 24 25 24 24 24 24 24 23 23 24 24 24 24 23 24 24 23 Final Capacity 25 | 5 5 5 15 15 15 15 15 15 15 15 15 25 25 25 25 25 25 25 25 25 25 25 25 25 25 25 25 25 25 25 25 5 Final Carried 25 | . 1 2 12 15 15 15 15 15 15 15 15 25 24 25 25 25 25 25 25 25 25 25 23 25 25 25 25 25 24 25 25 5 Class Distribution -------------------- 33% | Botlord-Tank 13% | Scavenger-Tank 12% | Botlord-Mutant 11% | Skirmisher 7% | Scavenger-Mutant 6% | Bothacker-Tank 4% | Commander-Tank Dominant Class ---------------- Mutant | -10/Materials Mutant | -10/Mines Mutant | -10/Exiles Scavenger-Mutant | -9/Mines Scavenger-Tank | -8/Materials Scavenger-Tank | -8/Garrison Skirmisher | -8/Materials Skirmisher | -8/Garrison Skirmisher | -8/Materials Skirmisher | -8/Garrison Bothacker-Tank | -7/Factory Scavenger-Tank | -7/Waste Tank | -7/Factory Scavenger-Tank | -7/Garrison Bothacker-Tank | -6/Factory Scavenger-Tank | -6/Waste Scavenger-Tank | -6/Factory Bothacker-Tank | -6/Garrison Botlord-Tank | -6/Factory Commander-Tank | -6/Extension Commander-Tank | -6/Cetus Commander-Mutant | -6/Archives Commander-Mutant | -6/Hub_04(d) Botlord-Tank | -6/Garrison Botlord-Mutant | -5/Factory Botlord-Mutant | -5/Waste Botlord-Tank | -5/Factory Botlord-Tank | -5/Garrison Botlord-Tank | -4/Factory Botlord-Tank | -4/Garrison Botlord-Mutant | -3/Research Scavenger-Mutant | -3/Quarantine Resources | -11 -10 -10 -10 -9 -8 -8 -8 -8 -8 -8 -7 -7 -7 -7 -6 -6 -6 -6 -6 -6 -6 -6 -6 -6 -5 -5 -5 -5 -4 -4 -3 -3 ----------- Run | Yrd Mat Min Exi Min Mat Gar Mat Gar Mat Gar Fac Was Fac Gar Fac Was Fac Gar Fac Ext Cet Arc Hub Gar Fac Was Fac Gar Fac Gar Res Qua Matter Collected 18546 | . . . 240 74 374 428 450 30 230 1141 648 244 476 1560 130 598 48 727 331 479 250 46 296 1727 595 225 276 2626 1180 1202 321 1594 Remotely 1087 | . . . . . . . . . . . . . . . . . . . . . . . . . 131 . . 618 338 . . . Salvage Created 22739 | . . . . 191 753 739 774 797 535 1506 613 32 590 2427 187 649 . 659 295 402 230 250 474 2034 750 367 460 1407 390 2361 99 2768 Parts 1023 | . . . . 10 51 40 58 30 24 64 36 2 36 101 10 9 . 44 9 13 12 16 16 87 20 14 23 62 13 79 6 138 Haulers Intercepted 14 | . . . . . 1 . 3 . 2 . 2 . 4 . . . . . . . . . 1 . . . 1 . . . . . Recyclers Shooed 11 | . . . . 1 2 . . . 1 . . . . . . . . . . . . . . . 1 . 1 . . . . 5 Parts Field Recycled . | . . . . . . . . . . . . . . . . . . . . . . . . . . . . . . . . . Retrieved Matter . | . . . . . . . . . . . . . . . . . . . . . . . . . . . . . . . . . Parts Self-Destructed . | . . . . . . . . . . . . . . . . . . . . . . . . . . . . . . . . . Prevented . | . . . . . . . . . . . . . . . . . . . . . . . . . . . . . . . . . Kills | -11 -10 -10 -10 -9 -8 -8 -8 -8 -8 -8 -7 -7 -7 -7 -6 -6 -6 -6 -6 -6 -6 -6 -6 -6 -5 -5 -5 -5 -4 -4 -3 -3 ------- Run | Yrd Mat Min Exi Min Mat Gar Mat Gar Mat Gar Fac Was Fac Gar Fac Was Fac Gar Fac Ext Cet Arc Hub Gar Fac Was Fac Gar Fac Gar Res Qua Combat Hostiles Destroyed 329 | . . . . 1 10 16 11 19 6 33 6 . 7 38 3 2 . 16 3 7 2 2 5 31 10 . 4 35 10 15 1 36 Melee 7 | . . . . . . . . . . . . . . . . . . . . 2 . . . . . . . . . . . 5 Guns 166 | . . . . 1 10 15 7 . . 10 5 . 7 26 3 . . 13 3 3 2 2 5 16 . . . 3 2 14 1 18 Cannons 120 | . . . . . . 1 4 16 6 22 1 . . 12 . 1 . 3 . 2 . . . 4 7 . 1 22 6 1 . 11 AOE 22 | . . . . . . . . . . 1 . . . . . . . . . . . . . 9 1 . . 10 1 . . . Classes Destroyed 22 | . . . . 4 6 1 . 2 . . . 1 . 1 . 1 . 1 . . . 1 . 1 . . . 1 . 1 . 1 Worker 13 | . . . . 1 5 . . . . . 1 . 3 . 1 . . . . . . . . . . . . . . . . 2 Builder 7 | . . . . . 1 . 2 . . . 1 . . . . . . . . . . . . . . . . . . . . 3 Tunneler 4 | . . . . 1 1 . . . . . 1 . . . . . . . . . . . . . . . . . . . 1 . Hauler 14 | . . . . . 1 . 3 . 2 . 2 . 4 . . . . . . . . . 1 . . . 1 . . . . . Recycler 17 | . . . . 2 2 . 1 . 2 . 3 . . . . . . . 1 . . . . . 2 . 1 . . . . 3 Operator 3 | . . . . . . . . . . . . . . . . . . . . . . 3 . . . . . . . . . . Turret 1 | . . . . . . . . . . . . . . . . . . . . . . . . . . . . . . 1 . . Watcher 11 | . . . . . 2 . 5 . 2 . . . . . . . . . . 1 . . . . . . . 1 . . . . Swarmer 53 | . . . . 1 4 4 7 3 . . 3 . 2 5 . . . 9 . . . . . 8 . . . 7 . . . . Cutter 14 | . . . . . . . . . . . . . . . . . . 2 . . . . . 5 . . . 7 . . . . Grunt 112 | . . . . . 3 9 . 7 4 15 1 . 3 20 . . . 1 1 4 . . . 11 2 . 1 6 2 8 . 14 Brawler 14 | . . . . . . . . 2 . 3 . . . 2 . . . . 1 . . . . . 1 . . 3 1 1 . . Duelist 8 | . . . . . . 1 . . . 2 1 . . . . . . . . . . . . . . . . 1 1 1 . 1 Researcher 1 | . . . . . . . . . . . . . . . . . . . . . . . . . . . . . . . . 1 Sentry 43 | . . . . . 2 2 3 3 2 4 . . 1 6 1 . . 3 . 1 . 2 2 1 . . 1 3 1 3 1 1 Specialist 2 | . . . . . . . . . . . . . . 1 . . . . . . . . . 1 . . . . . . . . Hunter 17 | . . . . . 1 . 1 1 . . . . . . . . . 1 1 . . . . 1 1 . 1 2 2 2 . 3 Programmer 52 | . . . . . . . . 3 . 8 1 . 1 4 2 . . . . . . . . 3 6 . 1 3 3 . . 17 Behemoth 6 | . . . . . . . . . . . . . . . . . . . . . . . . 1 . . . 4 . 1 . . Compactor 2 | . . . . . . . . . . . . . . . . 2 . . . . . . . . . . . . . . . . Cetus Guard 2 | . . . . . . . . . . . . . . . . . . . . . 2 . . . . . . . . . . . Enhanced Grunt 1 | . . . . . . . . . . . . . . . . . . . . . 1 . . . . . . . . . . . Lightning 3 | . . . . . . . . . . . . . . . . . . . . . . . 3 . . . . . . . . . Surgeon 1 | . . . . . . . . . . . . . . . . . . . . . . . . . . . . 1 . . . . Wasp 5 | . . . . . . . . . . . . . . . . . . 1 . . . . . . . 4 . . . . . . Thug 3 | . . . . . . . . . . 1 . . . . . . . . . . . . . . . 1 . 1 . . . . Savage 1 | . . . . . . . . . . . . . . . . . . . . 1 . . . . . . . . . . . . Butcher 1 | . . . . . . . . . . . . . . . . . . . . 1 . . . . . . . . . . . . Martyr 5 | . . . . . . . . . . . . 1 . . . 2 . . . . . . . . . 2 . . . . . . Best Kill Streak 8 | . . . . 1 8 4 3 5 2 5 3 . 5 5 2 1 . 6 2 2 2 2 5 5 3 . 1 6 2 2 1 5 Combat Bots Only 6 | . . . . 1 3 4 3 5 2 5 3 . 3 5 2 1 . 6 2 2 2 1 4 5 3 . 1 6 2 2 1 4 Max Kills in Single Turn 4 | . . . . 1 2 2 2 1 1 1 2 1 2 2 2 1 . 3 1 1 1 1 1 3 1 1 1 4 1 2 1 2 Gunslinging 1 | . . . . . . 1 1 . . . . . . 1 . . . 1 . . . . . . . . . . . . . . Exploded 4 | . . . . . . . . . . 1 . . . . . . . . . . . . . 3 1 . . 4 1 . . . Melee 1 | . . . . . . . . . . . . . . . . . . . . 1 . . . . . . . . . . . 1 Uniques/NPCs Destroyed . | . . . . . . . . . . . . . . . . . . . . . . . . . . . . . . . . . Combat | -11 -10 -10 -10 -9 -8 -8 -8 -8 -8 -8 -7 -7 -7 -7 -6 -6 -6 -6 -6 -6 -6 -6 -6 -6 -5 -5 -5 -5 -4 -4 -3 -3 -------- Run | Yrd Mat Min Exi Min Mat Gar Mat Gar Mat Gar Fac Was Fac Gar Fac Was Fac Gar Fac Ext Cet Arc Hub Gar Fac Was Fac Gar Fac Gar Res Qua Hostile Shots Fired 2515 | . 13 . . 6 39 25 30 57 8 94 42 . 39 158 46 . . 48 39 58 15 . 234 197 79 . 17 259 108 213 2 689 Missed 789 | . 5 . . . 14 9 5 23 3 34 13 . 21 48 15 . . 14 23 23 3 . 66 54 21 . 7 64 35 68 1 220 Hits 1726 | . 8 . . 6 25 16 25 34 5 60 29 . 18 110 31 . . 34 16 35 12 . 168 143 58 . 10 195 73 145 1 469 Melee 52 | . . . . . . . . . . . 4 . . . . . . . . . . . . 13 . . . 11 1 13 . 10 Projectile 1674 | . 8 . . 6 25 16 25 34 5 60 25 . 18 110 31 . . 34 16 35 12 . 168 130 58 . 10 184 72 132 1 459 AOE 8 | . . . . . . . . . . . . . . . . . . 1 . . . . 1 1 . . . 1 . . 3 1 Critical Strikes 85 | . 1 . . . 1 1 1 . 1 4 1 . . 3 1 . . 1 . . 1 . 4 10 4 . . 13 6 9 . 23 Actively Blocked 1 | . 1 . . . . . . . . . . . . . . . . . . . . . . . . . . . . . . . Part Disruptions 6 | . . . . . . . . . . . . . . 1 . . . . . . . . . . . . . . . . . 5 Actively Blocked 1 | . . . . . . . . . . . . . . . . . . . . . . . . . . . . . . . . 1 Damage Taken 23656 | 5 70 . . 42 244 166 179 371 198 1040 491 . 204 1087 334 18 9 381 66 219 293 . 1517 2251 846 . 140 3286 970 1799 124 7306 Core 2251 | 5 65 . . 15 19 31 7 29 39 60 73 . 50 52 58 . . 24 17 43 . . 93 199 56 . . 140 63 53 12 1048 Absorbed by Shields 8385 | . . . . . 97 65 72 134 24 44 54 . 36 338 . . 4 224 59 191 92 . 72 92 243 . 91 1486 705 898 132 3232 Reduced by Siege Mode 516 | . . . . . . . . . . . . . . 6 . . . . . . . . 48 89 3 . . 229 . . . 141 Redirected to Shielding 5 | . 5 . . . . . . . . . . . . . . . . . . . . . . . . . . . . . . . Ignored by Resistances 2761 | . . . . . . . . . . . . . . 20 . . 6 125 32 4 . . 625 558 12 . . 472 119 117 . 671 Regen/Repaired (Parts) 3274 | . . . . . 23 . 147 . . . . 122 57 22 236 6 . 61 4 74 105 . . . 203 131 37 883 499 47 23 594 Core Remaining (%) 74 | 98 . . . 66 . . . . . 66 . . . 75 . . . . . . . . . 48 . . . 80 . 89 . . Volleys Fired 1607 | . . . . 11 45 44 45 64 30 139 61 8 33 145 28 54 1 81 26 64 35 3 24 112 42 29 32 144 69 77 17 144 Largest 3 | . . . . 2 3 3 3 3 3 3 3 2 3 3 3 2 2 3 3 3 3 3 3 3 3 1 2 3 3 3 2 3 Hottest 300 | . . . . 98 128 128 240 240 240 185 130 50 86 120 84 120 58 112 120 169 146 100 100 150 206 81 155 300 191 116 146 282 Shots Fired 2907 | . . . . 15 121 102 132 128 68 220 112 14 87 299 48 78 2 116 42 75 44 9 72 204 56 30 35 217 116 169 22 274 Gun 1721 | . . . . 15 121 98 85 . 11 99 84 12 83 250 37 48 2 77 27 11 15 9 72 156 . . 1 44 31 153 10 170 Cannon 916 | . . . . . . 4 47 122 54 106 9 . . 39 . 28 . 8 9 31 29 . . 24 47 24 24 155 56 8 4 88 Launcher 15 | . . . . . . . . . . . . . . . . . . . . . . . . 8 . . . 4 . . . 3 Special 255 | . . . . . . . . 6 3 15 19 2 4 10 11 2 . 31 6 33 . . . 16 9 6 10 14 29 8 8 13 Kinetic 1798 | . . . . 6 76 66 85 . 10 156 78 12 83 273 37 51 2 85 31 8 10 9 72 156 15 2 4 155 56 161 10 89 Thermal 770 | . . . . 9 45 36 47 122 55 49 15 . . 16 . 25 . . 5 34 34 . . 3 20 . 7 44 31 . 4 169 Explosive 15 | . . . . . . . . . . . . . . . . . . . . . . . . 8 . . . 4 . . . 3 Electromagnetic 69 | . . . . . . . . . . . . . . . . . . . . . . . . 21 12 22 14 . . . . . Robot Hit Streak 53 | . . . . 3 8 7 8 16 10 24 14 16 21 29 8 12 1 16 8 28 29 2 15 26 8 7 8 53 15 19 21 19 Robot Miss Streak 6 | . . . . 5 3 5 5 3 2 4 6 1 4 2 4 2 1 3 3 4 1 2 4 2 3 4 3 4 3 5 2 4 Penetration Max 2 | . . . . . 1 1 1 . . . 2 . 1 2 1 . . 1 1 1 1 . 1 1 1 . . 1 . 1 . 1 Secondary Targets 21 | . . . . . 2 1 1 . . 1 2 . . 6 . . . 2 . . . . 2 2 . . . . . 1 . 1 Max Gunslinging Chain 1 | . . . . . 1 1 1 . . 1 1 . . 1 . . . 1 . . . . 1 1 . . . . . 1 . 1 Shots Hit Robots 1808 | . . . . 7 73 46 51 80 33 137 69 14 60 185 29 56 1 62 24 47 15 9 42 164 32 30 20 133 79 137 15 158 Core Hits 714 | . . . . 7 33 27 27 23 17 56 29 2 21 84 9 10 . 24 7 17 11 6 13 55 10 10 4 60 17 57 3 75 Critical Kills 35 | . . . . . 1 1 . 2 . . 1 . 2 7 . . . 1 2 1 . . 2 1 . . . . . 5 . 9 Critical Parts Destroyed 37 | . . . . . . . 1 . . 3 4 . 1 2 . . . 2 . . . . 7 4 . . . . . . . 13 Critical Strikes 124 | . . . . 1 5 2 1 2 . 10 5 . 3 9 . 1 . 5 2 3 2 . 9 9 2 . 2 9 6 11 1 24 Burn 8 | . . . . 1 4 1 . . . . . . . . . . . . . 2 . . . . . . . . . . . . Meltdown 4 | . . . . . . . . 2 . . . . . . . . . . . . . . . . . . . . . . . 2 Destroy 73 | . . . . . 1 1 1 . . 3 5 . 3 9 . . . 5 2 1 . . 9 7 . . . . . 5 1 20 Blast 26 | . . . . . . . . . . 7 . . . . . . . . . . . . . . 1 . . 9 6 1 . 2 Corrupt 3 | . . . . . . . . . . . . . . . . . . . . . . . . . 1 . 2 . . . . . Sever 10 | . . . . . . . . . . . . . . . . 1 . . . . 2 . . 2 . . . . . 5 . . Melee Attacks 195 | . . . . . . . . . . . 5 4 1 2 . 13 . . 1 4 3 6 2 29 5 11 . 5 3 48 4 49 Impact . | . . . . . . . . . . . . . . . . . . . . . . . . . . . . . . . . . Slashing 191 | . . . . . . . . . . . 5 4 1 2 . 13 . . 1 4 3 6 2 29 5 11 . 5 3 48 4 45 Piercing . | . . . . . . . . . . . . . . . . . . . . . . . . . . . . . . . . . Sneak Attacks 44 | . . . . . . . . . . . 1 4 . . . 13 . . . 4 3 4 . . 1 11 . . 1 . 1 1 Combat Hostiles 5 | . . . . . . . . . . . . . . . . . . . . 1 . . . . . 3 . . 1 . . . Follow-up Attacks . | . . . . . . . . . . . . . . . . . . . . . . . . . . . . . . . . . Damage Inflicted 59319 | 10 1 . . 147 1377 1173 1284 1934 923 3425 1222 529 1244 4716 524 2763 12 1234 539 1473 810 637 1172 6864 1533 1056 578 7988 2140 5413 276 6322 Guns 24910 | . . . . 147 1366 1035 823 . 105 970 1069 223 1244 3899 524 932 12 1104 432 257 343 166 1172 2715 . . . 390 558 2182 124 3118 Cannons 21435 | . . . . . . 138 461 1934 813 2455 85 . . 815 . 931 . 130 107 907 207 . . 820 1169 340 578 6065 1516 75 69 1820 Explosions 3164 | . . . . . . . . . . . . . . . . . . . . . . . . 1180 265 . . 1103 . . . 616 Melee 9702 | . . . . . . . . . . . 68 306 . . . 900 . . . 309 260 471 . 2143 86 716 . 398 66 3156 83 740 Ramming 108 | 10 1 . . . 11 . . . 5 . . . . 2 . . . . . . . . . 6 13 . . 32 . . . 28 Kinetic 31232 | . . . . 86 754 720 823 . 105 2537 846 223 1244 4131 524 989 12 1234 499 236 249 166 1172 2715 425 58 101 6148 1516 2257 124 1338 Thermal 13588 | . . . . 61 612 453 461 1934 813 888 308 . . 583 . 874 . . 40 928 301 . . 123 625 . 50 307 558 . 69 3600 Explosive 2836 | . . . . . . . . . . . . . . . . . . . . . . . . 1138 . . . 1103 . . . 595 Electromagnetic 1853 | . . . . . . . . . . . . . . . . . . . . . . . . 739 384 282 427 . . . . 21 Impact . | . . . . . . . . . . . . . . . . . . . . . . . . . . . . . . . . . Slashing 9702 | . . . . . . . . . . . 68 306 . . . 900 . . . 309 260 471 . 2143 86 716 . 398 66 3156 83 740 Piercing . | . . . . . . . . . . . . . . . . . . . . . . . . . . . . . . . . . Highest Corruption 43 | . . . . . . . . . . 7 . . . 5 . . . . 1 . . . 2 13 7 7 7 10 1 6 . 43 Average Corruption 6 | . . . . . . . . . . 1 . . . 4 . . . . 1 . . . 1 4 3 7 7 7 1 3 . 12 Corruption Purged 1 | . . . . . . . . . . . . . . . . . . . 1 . . . . . . . . . . . . . Corruption Blocked . | . . . . . . . . . . . . . . . . . . . . . . . . . . . . . . . . . Effects 455 | . . . . . . . . . . 11 . . . 12 . . . . 3 . . . 1 58 32 30 35 97 6 41 . 129 Message Errors 90 | . . . . . . . . . . 1 . . . 4 . . . . . . . . 1 12 8 4 10 18 . 9 . 23 Matter Fused 117 | . . . . . . . . . . 3 . . . 1 . . . . 3 . . . . 8 8 9 13 30 1 13 . 28 Heat Flow Errors 52 | . . . . . . . . . . 1 . . . 2 . . . . . . . . . 9 4 3 2 11 1 5 . 14 Energy Discharges 56 | . . . . . . . . . . 1 . . . 3 . . . . . . . . . 7 4 4 3 11 2 5 . 16 Parts Rejected 6 | . . . . . . . . . . . . . . . . . . . . . . . . 1 . . . 1 . . . 4 Parts Fused 3 | . . . . . . . . . . . . . . . . . . . . . . . . . 1 1 . . . 1 . . Data Loss (minor) 58 | . . . . . . . . . . 1 . . . 1 . . . . . . . . . 11 5 4 3 10 2 4 . 17 Data Loss (major) 25 | . . . . . . . . . . 1 . . . . . . . . . . . . . 5 . . 1 8 . 1 . 9 Misfires 22 | . . . . . . . . . . 1 . . . . . . . . . . . . . 2 1 2 1 6 . 2 . 7 Alerts 13 | . . . . . . . . . . . . . . . . . . . . . . . . 1 1 2 2 1 . 1 . 5 Misdirections 3 | . . . . . . . . . . . . . . . . . . . . . . . . . . . . . . . . 3 Weapon Failures 10 | . . . . . . . . . . 2 . . . 1 . . . . . . . . . 2 . 1 . 1 . . . 3 Overload Shots 1 | . . . . . . . . . . . . . . . . . . . . . . . . . . . . 1 . . . . Overflow Damage 2087 | . . . . . . . 17 6 3 184 38 91 . 27 . 159 . . . . . 161 . 255 136 112 17 533 137 26 . 185 Projectiles 1004 | . . . . . . . 17 6 3 184 . . . 27 . . . . . . . . . 11 69 . 17 465 137 . . 68 Explosions 283 | . . . . . . . . . . . . . . . . . . . . . . . . 158 67 . . 24 . . . 34 Melee 800 | . . . . . . . . . . . 38 91 . . . 159 . . . . . 161 . 86 . 112 . 44 . 26 . 83 Knockbacks 44 | . . . . . . . . . . 8 2 . . 1 . . . . 1 . . . . 1 3 1 . 7 11 . . 9 Impact 3 | . . . . . . . . . . . . . . . . . . . . . . . . 1 1 . . . . . . 1 Kinetic 39 | . . . . . . . . . . 8 2 . . 1 . . . . 1 . . . . . 2 1 . 7 10 . . 7 Secondary 2 | . . . . . . . . . . . . . . . . . . . . . . . . . . . . . 1 . . 1 Self-Inflicted Damage 329 | 5 . . . . . . . . . . . . . . . . . . . . . . . 141 61 . . 122 . . . . Shots 6 | . . . . . . . . . . . . . . . . . . . . . . . . 3 1 . . 2 . . . . Rammed 17 | 1 1 . . . 2 . 1 . 1 . . . . 1 . . . . . . . . . 2 1 . . 3 . . . 4 Targets Rammed 17 | 1 1 . . . 2 . 1 . 1 . . . . 1 . . . . . . . . . 2 1 . . 3 . . . 4 Kicked . | . . . . . . . . . . . . . . . . . . . . . . . . . . . . . . . . . Crushed . | . . . . . . . . . . . . . . . . . . . . . . . . . . . . . . . . . Highest Temperature 485 | . . . . 20 77 168 216 334 266 358 52 . 56 204 7 100 . 146 152 140 204 . 315 485 401 186 177 259 241 397 . 192 Average Temperature 79 | . . . . 11 17 38 79 113 105 134 22 . 28 49 7 41 . 40 70 48 65 . 148 82 121 72 63 82 85 127 . 56 Received Heat Transfer 4004 | . . . . . 50 92 31 84 21 386 107 . 18 318 118 9 . 61 13 61 26 . 447 842 37 . 21 507 171 126 . 458 Effects 10 | . . . . . . . . 1 1 2 . . . . . . . . . . . . . 2 3 . . . . 1 . . Shutdowns 1 | . . . . . . . . . . . . . . . . . . . . . . . . . 1 . . . . . . . Energy Bleed 7 | . . . . . . . . 1 . 2 . . . . . . . . . . . . . 1 2 . . . . 1 . . Interference 1 | . . . . . . . . . 1 . . . . . . . . . . . . . . . . . . . . . . . Matter Decay 1 | . . . . . . . . . . . . . . . . . . . . . . . . 1 . . . . . . . . Siege Activations 23 | . . . . . . . . . . . . . . 5 . . . 1 . . 1 . 1 2 2 . . 6 . . . 5 Total Turns 539 | . . . . . . . . . . . . . . 62 . . . 4 . . 2 . 43 65 141 . . 122 . . . 100 Longest Duration 135 | . . . . . . . . . . . . . . 22 . . . 4 . . 2 . 43 39 135 . . 30 . . . 25 Martial Activations . | . . . . . . . . . . . . . . . . . . . . . . . . . . . . . . . . . Shielding Activations . | . . . . . . . . . . . . . . . . . . . . . . . . . . . . . . . . . Robots Disrupted . | . . . . . . . . . . . . . . . . . . . . . . . . . . . . . . . . . Combat Hostiles . | . . . . . . . . . . . . . . . . . . . . . . . . . . . . . . . . . Robots Corrupted 10 | . . . . . . . . . . . . . . . . . . . . . . . . 4 2 1 3 . . . . . Combat Hostiles 8 | . . . . . . . . . . . . . . . . . . . . . . . . 3 2 . 3 . . . . . Parts Fried 13 | . . . . . . . . . . . . . . . . . . . . . . . . 2 3 3 5 . . . . . Impact Corruptions 2 | . . . . . . . . . . . . . . . . . . . . . . . . . . . . 2 . . . . Robots Melted 7 | . . . . . . . . 3 . . . . . . . 1 . . . . . . . . . . . . 1 . . 2 Combat Hostiles 7 | . . . . . . . . 3 . . . . . . . 1 . . . . . . . . . . . . 1 . . 2 Parts Melted 49 | . . . . . 1 . 3 15 5 4 1 . 1 3 . 3 . . . 3 . . . . . . . . 3 . . 7 Heat Transferred 22263 | . . . . 185 1369 949 900 3750 1600 1700 700 . . 1280 . 2000 . . 80 1896 628 . . 50 100 . . 461 795 . 46 3774 Parts Sabotaged 3 | . . . . . . . . . . . . . . . . . . . . . . . . . . . . . . . . 3 Parts Stolen . | . . . . . . . . . . . . . . . . . . . . . . . . . . . . . . . . . Parts Stripped . | . . . . . . . . . . . . . . . . . . . . . . . . . . . . . . . . . Power Chain Reactions 1 | . . . . . . . . . . . . . . . . . . . . . . . . 1 . . . . . . . . Alert | -11 -10 -10 -10 -9 -8 -8 -8 -8 -8 -8 -7 -7 -7 -7 -6 -6 -6 -6 -6 -6 -6 -6 -6 -6 -5 -5 -5 -5 -4 -4 -3 -3 ------- Run | Yrd Mat Min Exi Min Mat Gar Mat Gar Mat Gar Fac Was Fac Gar Fac Was Fac Gar Fac Ext Cet Arc Hub Gar Fac Was Fac Gar Fac Gar Res Qua Maximum Alert Level 5 | . . . . . . 2 1 4 2 5 3 1 3 5 3 . . 4 3 1 . . . 3 2 . . 5 4 5 4 3 Low Security (%) 34 | 100 100 100 . 100 100 35 72 12 . . . 88 34 . . 100 100 21 . 89 100 100 100 14 . 100 100 8 . . . 65 Level 1 7 | . . . . . . 49 27 14 . 10 . 11 2 . . . . 2 . 10 . . . 12 31 . . 5 . . . 11 Level 2 20 | . . . . . . 15 . 14 100 5 . . 10 1 58 . . 13 91 . . . . 36 68 . . 20 . . 34 19 Level 3 18 | . . . . . . . . 38 . 32 100 . 52 29 41 . . 23 8 . . . . 36 . . . 30 . 24 54 2 Level 4 12 | . . . . . . . . 20 . 36 . . . 34 . . . 38 . . . . . . . . . 14 100 44 11 . Level 5 5 | . . . . . . . . . . 14 . . . 35 . . . . . . . . . . . . . 19 . 30 . . High Security . | . . . . . . . . . . . . . . . . . . . . . . . . . . . . . . . . . Max Security . | . . . . . . . . . . . . . . . . . . . . . . . . . . . . . . . . . Peak Influence 2241 | . . . . 74 127 481 349 1209 593 1829 959 263 1008 1989 1043 178 156 1459 765 297 125 142 76 1095 609 95 155 2241 1302 2105 1183 743 Initial 1183 | . . . . . 6 52 234 . 588 311 959 263 . 688 1043 178 . 109 765 214 73 21 . 32 574 95 . 44 1176 844 1183 300 Average 583 | . . . . 9 57 255 112 716 525 1143 804 81 554 1338 723 34 50 844 563 104 41 71 16 552 436 10 49 996 1222 1404 819 199 Influence Increases 19964 | . . . . 121 403 429 496 1209 301 1608 252 14 1405 1471 123 10 206 1570 475 788 275 185 251 1333 604 2 478 2387 616 1411 90 1451 Destroy 0b10 Robot/C 8235 | . . . . 80 200 320 220 540 160 760 120 . 560 785 45 . 75 615 150 315 120 60 105 480 195 . 180 690 210 450 30 770 Destroy 0b10 Robot/NC 595 | . . . . 25 60 10 55 . 35 10 40 . 85 20 4 . . 4 12 16 8 12 12 32 32 . 20 16 8 36 4 39 Destroy Leader 1032 | . . . . 10 56 20 86 30 40 50 24 . 134 36 16 . 16 16 52 20 . . 34 8 50 . 56 56 42 48 8 124 Allied During Kill 2985 | . . . . 5 . . . 36 22 118 1 . 560 64 . . 91 635 192 351 128 72 69 8 24 . 204 207 51 115 20 12 Successful Hack 465 | . . . . . 11 14 20 . 14 . 16 . 24 11 12 . . 9 36 69 . . . . 83 . 4 11 42 11 16 62 Select Force Hacks 76 | . . . . . . . 30 . . . . . . . 23 . . . . . . . . . . . . . 23 . . . Disable Machine 630 | . . . . . 15 . 30 30 15 45 . . 15 12 12 . 24 . 24 . 12 36 . 48 72 . . 36 48 12 . 144 Anti-Garrison Action 3874 | . . . . . . . . 450 . 550 . . . 352 . . . 227 . . . . . 603 . . . 1015 . 677 . . Destroy Structure 1412 | . . . . 1 1 35 25 18 15 45 6 14 12 128 11 10 . 64 9 17 7 5 19 118 148 2 14 344 132 50 12 150 Partial Spotted 12 | . . . . . . . . . . . . . . . . . . . . . . . 12 . . . . . . . . . Lose Combat Pursuer 648 | . . . . . 60 30 30 105 . 30 45 . 15 63 . . . . . . . . . 36 . . . 12 60 12 . 150 Influence Decreases 19271 | . . . . 104 339 29 977 . 1031 258 1328 767 421 466 1601 521 50 267 1496 1094 354 238 204 285 1427 274 415 209 1651 512 1660 1293 Entered New Map 8383 | . . . . . 11 29 247 . 621 168 870 490 . 296 946 333 . 47 694 224 59 32 . 15 521 177 . 19 1065 362 922 235 Time Decay 7186 | . . . . 104 328 . 580 . 380 . 428 237 301 . 380 158 30 . 622 505 201 186 111 . 636 97 347 . 416 . 628 511 Lost Part 580 | . . . . . . . . . 10 10 20 . . . . 10 . . 10 . . . . 50 20 . . 70 50 90 . 240 Lost Ally 1890 | . . . . . . . . . 20 80 10 40 120 170 . 20 20 220 20 90 94 20 93 220 100 . 68 120 120 60 110 75 Purge Threat 1232 | . . . . . . . 150 . . . . . . . 275 . . . 150 275 . . . . 150 . . . . . . 232 Squads Dispatched 81 | . . . . . 1 . 2 . 1 . 7 . 7 . 7 . 2 . 5 1 . . 3 . 6 . 5 . 11 . 1 22 Investigation 14 | . . . . . . . 2 . . . 1 . 1 . 3 . 1 . . . . . . . 1 . . . 2 . 1 2 Extermination 25 | . . . . . . . . . . . 2 . 2 . 2 . . . 2 . . . 1 . 4 . 2 . 2 . . 8 Reinforcement 21 | . . . . . 1 . . . . . 1 . 4 . 1 . . . 1 1 . . . . 1 . 3 . 2 . . 6 Assault 10 | . . . . . . . . . 1 . 2 . . . 1 . . . 1 . . . . . . . . . 2 . . 3 Garrison 11 | . . . . . . . . . . . 1 . . . . . 1 . 1 . . . 2 . . . . . 3 . . 3 Intercept . | . . . . . . . . . . . . . . . . . . . . . . . . . . . . . . . . . Searches Triggered . | . . . . . . . . . . . . . . . . . . . . . . . . . . . . . . . . . Construction Impeded 3 | . . . . . . . . . . . . . 1 . . . . . 1 . . . . . . . . . . . . 1 Haulers Reinforced 6 | . . . . . . . . . . . 1 . 1 . . . . . . . . . . . 1 . 1 . 1 . . 1 Active Scanning Responses . | . . . . . . . . . . . . . . . . . . . . . . . . . . . . . . . . . Cargo Convoy Interrupts . | . . . . . . . . . . . . . . . . . . . . . . . . . . . . . . . . . Alert ID Control Effect 48 | . . . . . . . . . . 1 9 . . . . . . 3 . 1 . . . 4 4 . 4 9 11 1 1 . Stealth | -11 -10 -10 -10 -9 -8 -8 -8 -8 -8 -8 -7 -7 -7 -7 -6 -6 -6 -6 -6 -6 -6 -6 -6 -6 -5 -5 -5 -5 -4 -4 -3 -3 --------- Run | Yrd Mat Min Exi Min Mat Gar Mat Gar Mat Gar Fac Was Fac Gar Fac Was Fac Gar Fac Ext Cet Arc Hub Gar Fac Was Fac Gar Fac Gar Res Qua Distress Signals 46 | . . . . 1 4 . 6 . 2 . 1 . 6 . . . . . . 2 2 . 2 1 1 . 1 . 3 . 11 3 Communications Jammed 130 | . . . . . . . . . . . . . . . 1 . . . . 69 . . . . 3 . 52 . . . . 5 Distress Signals 128 | . . . . . . . . . . . . . . . 1 . . . . 69 . . . . 3 . 50 . . . . 5 Times Spotted 759 | . 3 . . 7 16 13 20 29 13 45 33 6 35 47 12 3 6 46 10 26 11 7 17 45 40 4 20 59 38 29 16 103 Peak Tracking Total 12 | . 3 . . 3 5 3 6 7 2 6 6 3 8 6 4 3 3 8 2 4 5 2 7 8 9 2 3 9 5 4 4 12 Tactical Retreats 32 | . . . . . 3 2 1 5 . 1 2 . 1 3 . . . . . . . . . 3 . . . 1 3 1 . 6 Traps | -11 -10 -10 -10 -9 -8 -8 -8 -8 -8 -8 -7 -7 -7 -7 -6 -6 -6 -6 -6 -6 -6 -6 -6 -6 -5 -5 -5 -5 -4 -4 -3 -3 ------- Run | Yrd Mat Min Exi Min Mat Gar Mat Gar Mat Gar Fac Was Fac Gar Fac Was Fac Gar Fac Ext Cet Arc Hub Gar Fac Was Fac Gar Fac Gar Res Qua Traps Triggered 42 | . . . . . 2 . 1 2 . . 2 . 2 6 1 . . 1 1 1 . . . 5 1 . . 5 . 11 . 1 Indirectly . | . . . . . . . . . . . . . . . . . . . . . . . . . . . . . . . . . Trap Hack Attempts . | . . . . . . . . . . . . . . . . . . . . . . . . . . . . . . . . . Triggered . | . . . . . . . . . . . . . . . . . . . . . . . . . . . . . . . . . Disarmed . | . . . . . . . . . . . . . . . . . . . . . . . . . . . . . . . . . Reprogrammed . | . . . . . . . . . . . . . . . . . . . . . . . . . . . . . . . . . Reused . | . . . . . . . . . . . . . . . . . . . . . . . . . . . . . . . . . Traps Extracted . | . . . . . . . . . . . . . . . . . . . . . . . . . . . . . . . . . Installed . | . . . . . . . . . . . . . . . . . . . . . . . . . . . . . . . . . Triggered . | . . . . . . . . . . . . . . . . . . . . . . . . . . . . . . . . . Machines | -11 -10 -10 -10 -9 -8 -8 -8 -8 -8 -8 -7 -7 -7 -7 -6 -6 -6 -6 -6 -6 -6 -6 -6 -6 -5 -5 -5 -5 -4 -4 -3 -3 ---------- Run | Yrd Mat Min Exi Min Mat Gar Mat Gar Mat Gar Fac Was Fac Gar Fac Was Fac Gar Fac Ext Cet Arc Hub Gar Fac Was Fac Gar Fac Gar Res Qua Machines Disabled 89 | . . . . . 1 1 2 9 1 9 . . 1 5 1 . 2 4 2 . 1 3 . 10 6 . . 10 4 7 . 10 Max in Single Turn 2 | . . . . . 1 1 1 1 1 1 . . 1 1 1 . . 1 1 . 1 1 . 2 1 . . 1 1 1 . 1 Garrison Access 6 | . . . . . . . . . . . 1 . . . . . . . 1 . . . . . 1 . 1 . . . 2 . Garrison Relay 32 | . . . . . . . . 5 . 6 . . . 4 . . . 4 . . . . . 4 . . . 5 . 4 . . Network Hub 1 | . . . . . . . . . . . . . . . . . . . . . . . 1 . . . . . . . . . Machines Repaired . | . . . . . . . . . . . . . . . . . . . . . . . . . . . . . . . . . Machines Dismantled . | . . . . . . . . . . . . . . . . . . . . . . . . . . . . . . . . . Machines Sabotaged . | . . . . . . . . . . . . . . . . . . . . . . . . . . . . . . . . . Overloaded Fab Kills . | . . . . . . . . . . . . . . . . . . . . . . . . . . . . . . . . . Hacking | -11 -10 -10 -10 -9 -8 -8 -8 -8 -8 -8 -7 -7 -7 -7 -6 -6 -6 -6 -6 -6 -6 -6 -6 -6 -5 -5 -5 -5 -4 -4 -3 -3 --------- Run | Yrd Mat Min Exi Min Mat Gar Mat Gar Mat Gar Fac Was Fac Gar Fac Was Fac Gar Fac Ext Cet Arc Hub Gar Fac Was Fac Gar Fac Gar Res Qua Machines Accessed 119 | . . . 1 . 6 2 9 2 4 1 3 . 4 2 7 . 2 1 10 14 1 . 6 3 10 . 3 2 5 1 6 14 Terminals 81 | . . . . . 4 2 6 2 3 1 1 . 1 2 5 . . 1 7 14 1 . 5 3 5 . . 2 2 1 3 10 Fabricators 9 | . . . . . . . . . . . 1 . 2 . . . 1 . 1 . . . . . 2 . 1 . 1 . . . Repair Stations 9 | . . . . . 1 . 1 . . . . . . . 1 . . . 1 . . . . . 2 . . . 1 . . 2 Recycling Units 1 | . . . . . . . . . . . . . . . 1 . . . . . . . . . . . . . . . . . Scanalyzers 3 | . . . . . . . 1 . . . . . . . . . . . . . . . . . . . . . . . 1 1 Garrison Access 15 | . . . . . 1 . 1 . 1 . 1 . 1 . . . 1 . 1 . . . 1 . 1 . 2 . 1 . 2 1 Total Hacks 328 | . . . 1 . 14 5 23 5 11 3 8 . 7 6 13 . 5 2 23 35 2 . 12 7 49 . 6 3 32 1 15 40 Successful 168 | . . . 1 . 8 1 17 . 5 . 4 . 6 2 7 . 2 1 16 20 . . 8 1 24 . 5 2 16 1 7 14 Failed 159 | . . . . . 6 4 6 5 6 3 4 . 1 4 6 . 3 1 7 14 2 . 4 6 25 . 1 1 16 . 8 26 Catastrophic 33 | . . . . . . 1 . 2 1 . . . . 1 2 . . 1 1 1 . . 2 4 6 . . . 1 . 3 7 Database Lockouts 1 | . . . . . . . . . . . . . . . . . . . . 1 . . . . . . . . . . . . Manual 165 | . . . 1 . 8 1 14 . 8 . 5 . 4 1 11 . . 1 15 19 1 . 8 . 22 . . . 21 . 6 19 Terminals 232 | . . . . . 11 5 17 5 9 3 4 . 1 6 9 . . 2 17 35 2 . 11 7 32 . . 3 17 1 8 27 Fabricators 25 | . . . . . . . . . . . 3 . 4 . . . 3 . 2 . . . . . 5 . 2 . 6 . . . Repair Stations 32 | . . . . . 2 . 2 . . . . . . . 3 . . . 2 . . . . . 10 . . . 7 . . 6 Recycling Units 1 | . . . . . . . . . . . . . . . 1 . . . . . . . . . . . . . . . . . Scanalyzers 10 | . . . . . . . 3 . . . . . . . . . . . . . . . . . . . . . . . 4 3 Garrison Access 27 | . . . . . 1 . 1 . 2 . 1 . 2 . . . 2 . 2 . . . 1 . 2 . 4 . 2 . 3 4 Terminal Hacks 50 | . . . 1 . . 1 4 . . . . . . 2 . . . 1 3 12 . . 2 1 8 . . 2 4 1 2 6 Record 3 | . . . . . . . . . . . . . . . . . . . . . . . . . . . . . . . . 3 Robot Analysis 3 | . . . . . . . . . . . . . . . . . . . . 2 . . . . 1 . . . . . . . Prototype ID Bank 3 | . . . . . . . 1 . . . . . . . . . . . . 1 . . . . 1 . . . . . . . Open Door 11 | . . . . . . . . . . . . . . . . . . . 1 7 . . . . . . . 1 . . 1 1 Branch Access Points 2 | . . . . . . . . . . . . . . . . . . . . . . . . . 1 . . . 1 . . . Emergency Access Points 4 | . . . . . . . . . . . . . . 1 . . . . . . . . . 1 . . . 1 . 1 . . Terminal Index 8 | . . . . . . . . . . . . . . . . . . . 1 2 . . 1 . 1 . . . 1 . 1 1 Unreport Threat 3 | . . . . . . . 1 . . . . . . . . . . . 1 . . . . . 1 . . . . . . . Locate Traps 1 | . . . . . . . . . . . . . . . . . . . . . . . . . 1 . . . . . . . Patrol Status 2 | . . . . . . . . . . . . . . . . . . . . . . . 1 . 1 . . . . . . . Recall Extermination 1 | . . . . . . . . . . . . . . . . . . . . . . . . . . . . . . . . 1 Recall Reinforcements 1 | . . . . . . . . . . . . . . . . . . . . . . . . . . . . . 1 . . . Zone Layout 4 | . . . . . . . 2 . . . . . . . . . . . . . . . . . 1 . . . 1 . . . Garrison Registry 2 | . . . . . . 1 . . . . . . . . . . . 1 . . . . . . . . . . . . . . Patrol Navigation 1 | . . . . . . . . . . . . . . 1 . . . . . . . . . . . . . . . . . . Proto ID Catalog 1 | . . . 1 . . . . . . . . . . . . . . . . . . . . . . . . . . . . . Fabricator Hacks 7 | . . . . . . . . . . . 1 . 1 . . . . . 1 . . . . . 2 . 1 . 1 . . . Network Status 5 | . . . . . . . . . . . 1 . 1 . . . . . 1 . . . . . 1 . . . 1 . . . Build 2 | . . . . . . . . . . . . . . . . . . . . . . . . . 1 . 1 . . . . . Repair Station Hacks 17 | . . . . . 2 . 2 . . . . . . . 2 . . . 1 . . . . . 4 . . . 4 . . 2 Scan Component 9 | . . . . . 1 . 1 . . . . . . . 1 . . . 1 . . . . . 2 . . . 2 . . 1 Repair 8 | . . . . . 1 . 1 . . . . . . . 1 . . . . . . . . . 2 . . . 2 . . 1 Recycling Unit Hacks . | . . . . . . . . . . . . . . . . . . . . . . . . . . . . . . . . . Scanalyzer 3 | . . . . . . . 2 . . . . . . . . . . . . . . . . . . . . . . . 1 . Insert Component 2 | . . . . . . . 1 . . . . . . . . . . . . . . . . . . . . . . . 1 . Analyze 1 | . . . . . . . 1 . . . . . . . . . . . . . . . . . . . . . . . . . Garrison Access Hacks 22 | . . . . . 1 . 1 . 2 . 1 . 2 . . . 2 . 2 . . . 1 . 2 . 4 . 1 . 3 . Unlock Access 8 | . . . . . 1 . 1 . 1 . . . 1 . . . 1 . . . . . 1 . . . 1 . 1 . . . Seal Access 6 | . . . . . . . . . . . 1 . . . . . . . 1 . . . . . 1 . 1 . . . 2 . Coupler Status 8 | . . . . . . . . . 1 . . . 1 . . . 1 . 1 . . . . . 1 . 2 . . . 1 . Unauthorized Hacks 69 | . . . . . 5 . 8 . 3 . 2 . 3 . 5 . . . 9 8 . . 5 . 8 . . . 6 . 1 6 Terminals 60 | . . . . . 5 . 7 . 3 . 2 . 1 . 3 . . . 8 8 . . 5 . 8 . . . 4 . 1 5 Botnet 10 | . . . . . 1 . . . . . . . . . . . . . 2 2 . . 1 . 2 . . . 1 . . 1 Operators 8 | . . . . . . . 2 . . . 1 . . . . . . . 1 1 . . 1 . 1 . . . 1 . . . Skim 41 | . . . . . 4 . 5 . 3 . 1 . . . 3 . . . 5 5 . . 3 . 5 . . . 2 . 1 4 Search 1 | . . . . . . . . . . . . . 1 . . . . . . . . . . . . . . . . . . . Fabricators 4 | . . . . . . . . . . . . . 2 . . . . . 1 . . . . . . . . . 1 . . . Report 1 | . . . . . . . . . . . . . 1 . . . . . . . . . . . . . . . . . . . Prioritize 1 | . . . . . . . . . . . . . . . . . . . . . . . . . . . . . 1 . . . Liberate 1 | . . . . . . . . . . . . . 1 . . . . . . . . . . . . . . . . . . . Haulers 1 | . . . . . . . . . . . . . . . . . . . 1 . . . . . . . . . . . . . Repair Stations 2 | . . . . . . . . . . . . . . . 1 . . . . . . . . . . . . . . . . 1 Mechanics 1 | . . . . . . . . . . . . . . . . . . . . . . . . . . . . . . . . 1 Patch 1 | . . . . . . . . . . . . . . . 1 . . . . . . . . . . . . . . . . . Recycling Units 1 | . . . . . . . . . . . . . . . 1 . . . . . . . . . . . . . . . . . Tunnel 1 | . . . . . . . . . . . . . . . 1 . . . . . . . . . . . . . . . . . Scanalyzers 1 | . . . . . . . 1 . . . . . . . . . . . . . . . . . . . . . . . . . Extract 1 | . . . . . . . 1 . . . . . . . . . . . . . . . . . . . . . . . . . Garrison Access 1 | . . . . . . . . . . . . . . . . . . . . . . . . . . . . . 1 . . . Eject 1 | . . . . . . . . . . . . . . . . . . . . . . . . . . . . . 1 . . . Data Cores Recovered 3 | . . . . . . . . . . . . . . . . . . . . . . . 2 . . . . . 1 . . . Used 1 | . . . . . . . . . . . . . . . . . . . . . . . 1 . . . . . . . . . Hacking Detections 91 | . . . . . 4 2 7 2 4 1 2 . 2 2 6 . 1 1 8 8 1 . 6 2 8 . 3 1 4 1 4 11 Full Trace Events 11 | . . . . . . . . 2 . 1 . . . 1 1 . 1 . . . . . . 2 1 . . . 1 . . 1 Feedback Events . | . . . . . . . . . . . . . . . . . . . . . . . . . . . . . . . . . Feedback Blocked . | . . . . . . . . . . . . . . . . . . . . . . . . . . . . . . . . . Robot Schematics Acquired . | . . . . . . . . . . . . . . . . . . . . . . . . . . . . . . . . . Robots Built . | . . . . . . . . . . . . . . . . . . . . . . . . . . . . . . . . . Authchips . | . . . . . . . . . . . . . . . . . . . . . . . . . . . . . . . . . Time . | . . . . . . . . . . . . . . . . . . . . . . . . . . . . . . . . . Total Robot Build Rating . | . . . . . . . . . . . . . . . . . . . . . . . . . . . . . . . . . Part Schematics Acquired 6 | . . . . . . . 2 . . . . . . . . . . . . . . . . . . . . . . . . 4 Parts Built 4 | . . . . . . . . . . . . . . . . . . . . . . . . . 2 . 2 . . . . . Authchips . | . . . . . . . . . . . . . . . . . . . . . . . . . . . . . . . . . Time 278 | . . . . . . . . . . . . . . . . . . . . . . . . . 139 . 139 . . . . . Total Part Build Rating 36 | . . . . . . . . . . . . . . . . . . . . . . . . . 18 . 18 . . . . . Parts Repaired 8 | . . . . . 1 . 1 . . . . . . . 1 . . . . . . . . . 2 . . . 2 . . 1 Time 417 | . . . . . 32 . 38 . . . . . . . 44 . . . . . . . . . 136 . . . 59 . . 108 Parts Recycled . | . . . . . . . . . . . . . . . . . . . . . . . . . . . . . . . . . Recycled Matter . | . . . . . . . . . . . . . . . . . . . . . . . . . . . . . . . . . Retrieved Matter . | . . . . . . . . . . . . . . . . . . . . . . . . . . . . . . . . . Retrieved Components . | . . . . . . . . . . . . . . . . . . . . . . . . . . . . . . . . . Parts Scanalyzed 2 | . . . . . . . 1 . . . . . . . . . . . . . . . . . . . . . . . 1 . Part Schematics Acquired 1 | . . . . . . . 1 . . . . . . . . . . . . . . . . . . . . . . . . . Parts Damaged 2 | . . . . . . . 1 . . . . . . . . . . . . . . . . . . . . . . . 1 . Bothacking | -11 -10 -10 -10 -9 -8 -8 -8 -8 -8 -8 -7 -7 -7 -7 -6 -6 -6 -6 -6 -6 -6 -6 -6 -6 -5 -5 -5 -5 -4 -4 -3 -3 ------------ Run | Yrd Mat Min Exi Min Mat Gar Mat Gar Mat Gar Fac Was Fac Gar Fac Was Fac Gar Fac Ext Cet Arc Hub Gar Fac Was Fac Gar Fac Gar Res Qua Used RIF Installer 10 | . . . . . . 1 . 1 . 1 . . . 2 . . . 2 . . . . . 1 . . . 1 . 1 . . Hotswap 1 | . . . . . . . . . . . . . . . . . . . . . . . . 1 . . . . . . . . Threat Obfuscator 1 | . . . . . . . . . . . . . . 1 . . . . . . . . . . . . . . . . . . Signal Jammer 1 | . . . . . . . . . . . . . . . . . . 1 . . . . . . . . . . . . . . Watcher Feeds 1 | . . . . . . . . . . . . . . . . . . . . . . . . . . . . 1 . . . . Patrol Navigation 1 | . . . . . . . . 1 . . . . . . . . . . . . . . . . . . . . . . . . Alert ID Control 1 | . . . . . . . . . . 1 . . . . . . . . . . . . . . . . . . . . . . Structural Interface 1 | . . . . . . . . . . . . . . . . . . . . . . . . . . . . . . 1 . . Program Shield 1 | . . . . . . . . . . . . . . . . . . 1 . . . . . . . . . . . . . . Autoassimilate 1 | . . . . . . . . . . . . . . 1 . . . . . . . . . . . . . . . . . . Robots Hacked 135 | . . . . . . . . . 1 7 11 2 3 1 6 2 . 11 6 12 . . . 14 7 6 7 7 14 3 8 7 Non-combat 31 | . . . . . . . . . . . 5 . . . 3 . . . 3 4 . . . . 2 . 2 1 2 1 4 4 Combat 104 | . . . . . . . . . 1 7 6 2 3 1 3 2 . 11 3 8 . . . 14 5 6 5 6 12 2 4 3 Autoassimilated 20 | . . . . . . . . . . . . . . . 1 . . 2 1 3 . . . 4 3 . 1 1 2 1 1 . Robot Hacks Applied 140 | . . . . . . . . . 2 7 12 2 4 1 7 2 . 11 6 14 . . . 10 5 6 6 7 19 2 7 10 parse_system 12 | . . . . . . . . . 1 . 2 . 1 . . . . 1 . 3 . . . . . . 1 . 1 . . 2 find_chute 3 | . . . . . . . . . . . 1 . . . 1 . . . . . . . . . . . . . 1 . . . ignore_repairs 5 | . . . . . . . . . . . . . . . . . . . 4 1 . . . . . . . . . . . . drop_inventory 6 | . . . . . . . . . . . . . . . . . . . . . . . . . 1 . 1 . . . 3 1 recall_reinforcements 1 | . . . . . . . . . . . . . . . . . . . . . . . . . 1 . . . . . . . ignore_parts 2 | . . . . . . . . . . . . . . . . . . . . . . . . . . . . . . . 1 1 purge_threat 6 | . . . . . . . . . . . . . . . 2 . . . . 2 . . . . . . . . . . . 2 block_reporting 2 | . . . . . . . . . . . . . . . . . . . . 2 . . . . . . . . . . . . map_route 4 | . . . . . . . . . . . 1 . . . 1 . . . . . . . . . 1 . . . . . . 1 ignore_targets 10 | . . . . . . . . . . . . 2 . . . 2 . . . . . . . . . 6 . . . . . . find_garrison 4 | . . . . . . . . . . . . . 1 . . . . . . . . . . . . . 1 . 1 . 1 . focus_fire 5 | . . . . . . . . . . . . . 1 . . . . 4 . . . . . . . . . . . . . . scatter_targeting 2 | . . . . . . . . . . . . . . . . . . . 1 . . . . . . . . 1 . . . . spike_heat 2 | . . . . . . . . . . . . . . . . . . . . . . . . . . . . . 2 . . . amplify_resonance 28 | . . . . . . . . . . 6 4 . . 1 1 . . 4 1 1 . . . 2 1 . 1 . 5 . . 1 wipe_record 1 | . . . . . . . . . . . . . . . . . . . . . . . . . . . . . 1 . . . reboot_system 5 | . . . . . . . . . . . . . . . . . . . . . . . . 1 . . . . 4 . . . overwrite_iff 16 | . . . . . . . . . . 1 . . . . . . . 1 . 1 . . . 5 . . . 3 3 . 1 1 formatsys_low 9 | . . . . . . . . . . . 2 . . . 1 . . . . 3 . . . . . . 1 1 . 1 . . formatsys_high 17 | . . . . . . . . . 1 . 2 . 1 . 1 . . 1 . 1 . . . 2 1 . 1 2 1 1 1 1 Relay Couplers Released 152 | . . . . . . . . 22 . 25 . . 4 16 . . . 18 1 . . . . 19 2 . 2 21 3 19 . . Ejected 3 | . . . . . . . . . . . . . . . . . . . . . . . . . . . . . 3 . . . Machine Destruction 142 | . . . . . . . . 22 . 25 . . . 16 . . . 18 1 . . . . 19 2 . 2 18 . 19 . . Programmers 7 | . . . . . . . . . . . . . 4 . . . . . . . . . . . . . . 3 . . . . Attached 48 | . . . . . . . . . 1 6 2 . 1 2 2 . . 6 . 3 . . . 5 2 1 1 5 4 5 1 1 Fabnet Peak Effective % . | . . . . . . . . . . . . . . . . . . . . . . . . . . . . . . . . . Robots Rewired 28 | . . . . . . . . 3 . 2 . . . 3 . . . 8 . 4 . . . 2 . . . 2 . 3 1 . Allies Hacked 5 | . . . . . . . . . . 2 . . 1 . . . . . . . . . . . . . 2 . . . . . Hacks Repelled . | . . . . . . . . . . . . . . . . . . . . . . . . . . . . . . . . . Allies | -11 -10 -10 -10 -9 -8 -8 -8 -8 -8 -8 -7 -7 -7 -7 -6 -6 -6 -6 -6 -6 -6 -6 -6 -6 -5 -5 -5 -5 -4 -4 -3 -3 -------- Run | Yrd Mat Min Exi Min Mat Gar Mat Gar Mat Gar Fac Was Fac Gar Fac Was Fac Gar Fac Ext Cet Arc Hub Gar Fac Was Fac Gar Fac Gar Res Qua Total Allies 169 | . . . . 1 . . . 3 1 3 4 18 4 3 3 20 . 12 1 21 5 . . 13 4 18 3 13 5 8 4 2 Largest Group 26 | . . . . 1 . . . 2 3 5 2 20 14 8 2 21 19 19 13 26 24 21 19 2 4 18 12 7 6 4 6 2 Highest-Rated Group 1043 | . . . . 31 . . . 32 122 189 55 489 354 196 58 734 636 667 424 913 1043 1020 830 201 155 638 426 455 416 264 363 111 Highest-Rated Ally 159 | . . . . 31 . . . 16 90 90 32 35 32 40 32 50 46 47 46 159 159 159 96 116 85 50 46 116 116 148 95 64 Total Orders 62 | . . . . . . . . . 5 8 2 1 . 4 1 2 . 4 5 5 11 2 4 . . . . 2 . 4 2 . STAY 33 | . . . . . . . . . 3 4 1 . . 3 1 1 . 2 3 2 7 1 2 . . . . 1 . 1 1 . ROAM 1 | . . . . . . . . . . . . . . . . . . . . . . . . . . . . . . 1 . . FOLLOW 25 | . . . . . . . . . 2 4 1 . . 1 . 1 . 2 2 3 4 1 2 . . . . 1 . 1 . . AID 3 | . . . . . . . . . . . . 1 . . . . . . . . . . . . . . . . . 1 1 . Ally Attacks 1691 | . . . . 5 . . . 21 24 57 19 103 143 40 . 103 50 123 40 115 74 26 69 53 43 130 131 127 62 75 39 19 Total Damage 43157 | . . . . 106 . . . 1008 676 1114 627 2563 2755 875 . 1742 785 2957 1198 2583 1774 494 1446 1448 1207 3451 2529 4235 2578 3027 1241 738 Kills 268 | . . . . 4 . . . 8 3 7 9 11 32 6 . 4 7 28 9 20 8 2 4 5 18 6 15 20 19 16 3 4 Allies Corrupted 21 | . . . . . . . . . . . . . . 1 . . . . . . . . 10 . 3 1 3 . 2 . . 1 Allies Melted 3 | . . . . . . . . . . . 1 . . . . . . . . . . . . 1 . . . 1 . . . . Turrets Deployed 3 | . . . . . . . . 1 . . . . . . . . . . . . . . . . . . . . . 1 . 1 Intel | -11 -10 -10 -10 -9 -8 -8 -8 -8 -8 -8 -7 -7 -7 -7 -6 -6 -6 -6 -6 -6 -6 -6 -6 -6 -5 -5 -5 -5 -4 -4 -3 -3 ------- Run | Yrd Mat Min Exi Min Mat Gar Mat Gar Mat Gar Fac Was Fac Gar Fac Was Fac Gar Fac Ext Cet Arc Hub Gar Fac Was Fac Gar Fac Gar Res Qua Active Infowar (turns) 9461 | . . . . . . . . . . . . 18 . 54 893 823 111 1195 . . . . . 212 720 . . 654 . . 1731 3050 Optics 16 | . . . . . . . . . . . . 16 . . . . . . . . . . . . . . . . . . . . Sensors 1321 | . . . . . . . . . . . . 2 . . 476 782 61 . . . . . . . . . . . . . . . IFF 1586 | . . . . . . . . . . . . . . . . . . . . . . . . 212 720 . . 654 . . . . Seismic 4781 | . . . . . . . . . . . . . . . . . . . . . . . . . . . . . . . 1731 3050 Triangulation 3 | . . . . . . . . . . . . . . . . . . . . . . . . . . . . . . . 3 . Jamming 3076 | . . . . . . . . . . . . . . 54 893 823 111 1195 . . . . . . . . . . . . . . Robot Analysis Total 3 | . . . . . . . . . . . . . . . . . . . . 2 . . . . 1 . . . . . . . Derelict Logs Recovered 2 | . . . . 2 . . . . . . . . . . . . . . . . . . . . . . . . . . . . Drone Launches . | . . . . . . . . . . . . . . . . . . . . . . . . . . . . . . . . . Drone Recoveries . | . . . . . . . . . . . . . . . . . . . . . . . . . . . . . . . . . Exploration | -11 -10 -10 -10 -9 -8 -8 -8 -8 -8 -8 -7 -7 -7 -7 -6 -6 -6 -6 -6 -6 -6 -6 -6 -6 -5 -5 -5 -5 -4 -4 -3 -3 ------------- Run | Yrd Mat Min Exi Min Mat Gar Mat Gar Mat Gar Fac Was Fac Gar Fac Was Fac Gar Fac Ext Cet Arc Hub Gar Fac Was Fac Gar Fac Gar Res Qua Turns Passed 43675 | 10 24 59 635 890 1349 702 2002 1505 894 1961 1051 750 971 1864 893 823 111 1664 2104 1664 685 404 449 2440 2259 962 1189 3358 1000 2711 2178 4114 Spaces Moved 17443 | 17 41 115 467 433 558 303 792 725 420 932 515 390 476 807 461 367 51 585 529 820 228 125 194 964 776 333 418 1123 303 890 884 1401 Core 420 | 17 41 115 156 . . . . . . . . . . . . . . . . . . . . . . . . . . . . 91 Treads 16588 | . . . . 390 558 303 792 725 420 932 515 390 476 807 461 367 51 585 529 820 228 125 194 964 776 333 418 1123 303 890 884 1229 Legs 35 | . . . . . . . . . . . . . . . . . . . . . . . . . . . . . . . . 35 Wheels . | . . . . . . . . . . . . . . . . . . . . . . . . . . . . . . . . . Hover 354 | . . . 311 43 . . . . . . . . . . . . . . . . . . . . . . . . . . . . Flight 46 | . . . . . . . . . . . . . . . . . . . . . . . . . . . . . . . . 46 Fastest Speed 45 | 50 50 50 50 160 160 160 158 161 161 166 158 158 160 160 160 160 160 240 160 160 160 160 160 160 160 240 255 160 240 245 161 45 Average Speed 191 | 50 50 50 133 168 160 160 159 161 176 166 162 159 160 172 160 160 188 240 239 166 208 171 162 181 225 253 255 237 241 246 194 218 Slowest Speed 470 | 50 50 50 240 240 240 160 163 161 250 166 166 160 160 240 160 160 240 240 240 240 240 240 240 240 240 255 255 320 245 250 250 470 Overloaded Moves . | . . . . . . . . . . . . . . . . . . . . . . . . . . . . . . . . . Propulsion Burnouts . | . . . . . . . . . . . . . . . . . . . . . . . . . . . . . . . . . Robots Hopped . | . . . . . . . . . . . . . . . . . . . . . . . . . . . . . . . . . Potential Cave-ins 27 | . . . . . . . . . . . . . . . . . . . . . . . . . . . . . . . . 27 Cave-ins Triggered 5 | . . . . . . . . . . . . . . . . . . . . . . . . . . . . . . . . 5 Teleports 4 | . . . . . . . . . . . . . . . . . . . . . . . . . . . . . . . . 4 Exploration Rate (%) 51 | 2 16 32 65 86 41 41 54 58 26 73 17 89 17 90 17 86 4 83 15 96 67 86 29 94 22 92 15 92 11 94 22 76 Regions Visited 32 Branch Regions 8 Pre-discovered Areas 7 | . . . . 1 . . 3 . . . . . . . 1 . . . 2 . . . . . . . . . . . . . Known Exits Taken 10 | . . . . . 1 . 1 . 1 . . . 1 . . . 1 . . 1 . . 1 . . . 1 . 1 . 1 . Unknown Exits Taken 8 | 1 1 1 1 1 . . . . . . . . . . . . . . 1 . 1 1 . . . . . . . . . . Scrap Searched 4 | . . 1 . 3 . . . . . . . . . . . . . . . . . . . . . . . . . . . . Spaces Dug 138 | . . . . . . . 12 . 2 3 7 . 1 1 5 . . . 3 2 . . 2 7 6 . . 16 7 9 6 49 Terrain Destroyed 534 | . . . . . 2 3 30 . 9 21 13 . 16 18 11 14 . 9 9 9 3 2 10 67 58 1 6 71 17 21 8 106 Melee 52 | . . . . . . . . . . . 4 . 1 . . . . . . . . . 2 1 3 . . . 2 7 3 29 Projectile 303 | . . . . . 2 3 29 . 9 21 9 . 15 18 11 14 . 9 9 9 3 2 8 3 10 1 6 23 15 14 5 55 AOE 177 | . . . . . . . . . . . . . . . . . . . . . . . . 63 45 . . 48 . . . 21 Terrain Rammed . | . . . . . . . . . . . . . . . . . . . . . . . . . . . . . . . . . Walls Destroyed . | . . . . . . . . . . . . . . . . . . . . . . . . . . . . . . . . . Machines Disabled . | . . . . . . . . . . . . . . . . . . . . . . . . . . . . . . . . . Actions | -11 -10 -10 -10 -9 -8 -8 -8 -8 -8 -8 -7 -7 -7 -7 -6 -6 -6 -6 -6 -6 -6 -6 -6 -6 -5 -5 -5 -5 -4 -4 -3 -3 --------- Run | Yrd Mat Min Exi Min Mat Gar Mat Gar Mat Gar Fac Was Fac Gar Fac Was Fac Gar Fac Ext Cet Arc Hub Gar Fac Was Fac Gar Fac Gar Res Qua Total 25125 | 17 43 115 480 578 914 446 1428 956 516 1159 646 500 649 1108 578 501 63 756 1324 1058 393 299 271 1453 1227 408 512 1578 479 1210 1318 2142 Wait 4687 | . . . . 117 275 86 568 137 46 55 30 59 102 102 72 50 8 64 754 142 94 163 37 214 347 25 43 177 66 88 380 386 Move 17414 | 16 40 114 466 432 557 301 792 724 420 930 515 389 475 805 461 366 50 584 528 819 227 124 194 963 776 332 418 1122 303 889 883 1399 Hop . | . . . . . . . . . . . . . . . . . . . . . . . . . . . . . . . . . Pick Up 200 | . 1 1 8 6 5 . 4 6 2 4 4 12 8 10 1 2 . 3 2 3 2 1 1 34 10 1 3 16 10 11 6 23 Fast Attach 144 | . 1 . 2 5 8 2 1 . 3 4 3 2 5 5 1 1 . 2 1 2 5 . 1 12 6 1 3 22 4 16 3 23 Attach 113 | . . . 2 . 3 . . . 1 2 2 4 1 3 1 2 . 2 . 2 2 . 1 23 6 1 1 9 6 7 1 31 Detach 79 | . . . 1 2 . . 1 . 1 1 . 3 . 2 . . . 2 . 2 4 . 2 7 3 1 2 11 . 8 1 25 Swap 363 | . . . . . 9 6 9 4 10 14 20 12 10 19 13 9 4 13 11 16 12 1 5 24 19 6 6 33 15 22 15 26 Drop 246 | . . . 1 5 10 6 7 5 2 10 6 7 14 14 . 4 . 5 1 3 9 1 4 29 12 1 4 23 3 22 8 30 Fire 1607 | . . . . 11 45 44 45 64 30 139 61 8 33 145 28 54 1 81 26 64 35 3 24 112 42 29 32 144 69 77 17 144 Melee 195 | . . . . . . . . . . . 5 4 1 2 . 13 . . 1 4 3 6 2 29 5 11 . 5 3 48 4 49 Ram 3 | 1 1 . . . . . . . . . . . . . . . . . . . . . . . . . . . . . . 1 Kick . | . . . . . . . . . . . . . . . . . . . . . . . . . . . . . . . . . Crush 14 | . . . . . 2 . 1 . 1 . . . . 1 . . . . . . . . . 2 1 . . 3 . . . 3 Escape Stasis 36 | . . . . . . . . . . . . . . . . . . . . . . . . 4 . . . 10 . 20 . 2 Rewire 24 | . . . . . . 1 . 16 . . . . . . 1 . . . . 1 . . . . . . . 3 . 2 . . Trap . | . . . . . . . . . . . . . . . . . . . . . . . . . . . . . . . . . Miscellaneous . | . . . . . . . . . . . . . . . . . . . . . . . . . . . . . . . . . Route ------- -11/Scrapyard -10/Materials -10/Mines -10/Exiles -9/Mines (discovered 2 exits: *Mat x2) -8/Materials -8/Garrison (discovered 3 exits: *Mat x3) -8/Materials (discovered 4 exits: *Fac x3 / Gar) -8/Garrison (discovered 2 exits: *Fac / *Mat) -8/Materials -8/Garrison (discovered 3 exits: *Fac x3) -7/Factory -7/Waste -7/Factory -7/Garrison (discovered 3 exits: *Fac x3) -6/Factory -6/Waste -6/Factory -6/Garrison (discovered 4 exits: *Fac x4) -6/Factory (discovered 2 exits: [*Low] / *Ext) -6/Extension (discovered 3 exits: *Fac x2 / *Cet) -6/Cetus (discovered 3 exits: *Fac x2 / [*Arc]) -6/Archives (discovered 2 exits: *Hub x2) -6/Hub_04(d) (discovered 2 exits: *Fac / Gar) -6/Garrison (discovered 3 exits: *Fac x3) -5/Factory (discovered 5 exits: Fac x3 / Upp x2) -5/Waste -5/Factory (discovered 4 exits: *Fac x2 / *Upp / Gar) -5/Garrison (discovered 3 exits: *Fac x3) -4/Factory (discovered 3 exits: Upp x2 / Gar) -4/Garrison (discovered 3 exits: *Res x3) -3/Research (discovered 3 exits: *Res / Arm / *Qua) -3/Quarantine History --------- Turn | Location | Event 4 | -11/Scrapyard | Discovered new exit (range 13) 11 | -11/Scrapyard | Entered Materials 33 | -10/Materials | Discovered new exit (range 6) 35 | -10/Materials | Entered Mines 92 | -10/Mines | Deemed a non-threat by the Exiles lab entrance 92 | -10/Mines | Discovered new exit (range 5) 94 | -10/Mines | Entered Exiles 110 | -10/Exiles | Met 8R-AWN 118 | -10/Exiles | Met EX-HEX 132 | -10/Exiles | Met EX-BIN 161 | -10/Exiles | Aligned with FarCom system 162 | -10/Exiles | Given EX-Vault access code 173 | -10/Exiles | Opened EX-Vault 181 | -10/Exiles | Found Gui. Plasma Cannon 195 | -10/Exiles | Warned to stay clear of 0b10 Research branches 212 | -10/Exiles | Met EX-DEC 307 | -10/Exiles | Build established: Mutant 494 | -10/Exiles | Found XL Autogun Array 498 | -10/Exiles | Found Deploy-a-Sentry 501 | -10/Exiles | Found Deploy-a-Sentry 505 | -10/Exiles | Found Deploy-a-Sentry 702 | -10/Exiles | Discovered new exit (range 12) 729 | -10/Exiles | Stole three prototypes: Gui. Plasma Cannon, XL Autogun Array, Deploy-a-Sentry 729 | -10/Exiles | Entered Mines 802 | -9/Mines | Joined a pair of Derelicts in attacking an 0b10 outpost 928 | -9/Mines | Learned Materials security intel 1148 | -9/Mines | Build established: Scavenger-Mutant 1185 | -9/Mines | Discovered new exit (range 12) 1189 | -9/Mines | Received a Mining Laser from a helpful Derelict 1334 | -9/Mines | Found a damaged Exp. Sensor Array with a note attached 1341 | -9/Mines | Found Prototype Device 1504 | -9/Mines | Learned location of Storage (-7) 1608 | -9/Mines | Discovered new exit (range 8) 1619 | -9/Mines | Entered Materials 1619 | -8/Materials | Evolved 4 slots: Propulsion x1, Utility x2, Weapon x1 1629 | -8/Materials | Identified exit to Garrison 1778 | -8/Materials | Repaired Cooling System 2371 | -8/Materials | Build established: Scavenger-Tank 2968 | -8/Materials | Entered Garrison 2980 | -8/Garrison | Discovered new exit (range 62) 2980 | -8/Garrison | Discovered new exit (range 60) 2980 | -8/Garrison | Discovered new exit (range 87) 3133 | -8/Garrison | Triggered checkpoint 3152 | -8/Garrison | Installed Relay Interface Framework 3670 | -8/Garrison | Entered Materials 3716 | -8/Materials | Repaired Hvy. Armor Plating? 4097 | -8/Materials | Build established: Skirmisher 4483 | -8/Materials | Identified Exp. Sensor Array 4883 | -8/Materials | Discovered new exit (range 11) 5166 | -8/Materials | Learned 2 Storage zone layouts 5243 | -8/Materials | Learned location of Lower Caves (-6) 5311 | -8/Materials | Identified exit to Factory 5415 | -8/Materials | Learned Storage terminal intel 5450 | -8/Materials | Learned location of 1 exit from Extension 5477 | -8/Materials | Learned location of Extension (-6) 5621 | -8/Materials | Learned location of Recycling (-7) 5672 | -8/Materials | Identified exit to Garrison 5672 | -8/Materials | Entered Garrison 5856 | -8/Garrison | Triggered checkpoint 5862 | -8/Garrison | Garrison Relay disabled 6004 | -8/Garrison | Triggered checkpoint 6070 | -8/Garrison | DAS Turret deployed 6140 | -8/Garrison | Triggered checkpoint 6266 | -8/Garrison | Triggered checkpoint 6284 | -8/Garrison | Garrison Relay disabled 6473 | -8/Garrison | Triggered checkpoint 6546 | -8/Garrison | Triggered checkpoint 6570 | -8/Garrison | Garrison Relay disabled 6582 | -8/Garrison | Triggered checkpoint 6655 | -8/Garrison | Discovered new exit (range 5) 6731 | -8/Garrison | Discovered exit to Factory (range 10) 6868 | -8/Garrison | Garrison Relay disabled 6920 | -8/Garrison | Triggered checkpoint 6947 | -8/Garrison | Expanded RIF knowledge: Patrol Navigation 6973 | -8/Garrison | Garrison Relay disabled 7177 | -8/Garrison | Entered Materials 7177 | -8/Materials | Accompanied by 3 allies 7274 | -8/Materials | Build established: Bothacker-Skirmisher 7908 | -8/Materials | Build established: Skirmisher 7977 | -8/Materials | First assault squad dispatched 8067 | -8/Materials | Identified exit to Garrison 8071 | -8/Materials | Entered Garrison 8071 | -8/Garrison | Accompanied by 3 allies 8111 | -8/Garrison | Expanded RIF knowledge: Alert ID Control 8341 | -8/Garrison | Triggered checkpoint 8414 | -8/Garrison | Garrison Relay disabled 8623 | -8/Garrison | P-60 Hacker assimilated allied UH-ALD(g) 8727 | -8/Garrison | Triggered checkpoint 8744 | -8/Garrison | Garrison Relay disabled 8799 | -8/Garrison | Discovered exit to Factory (range 11) 8958 | -8/Garrison | Discovered exit to Factory (range 10) 8994 | -8/Garrison | Triggered checkpoint 9074 | -8/Garrison | Garrison Relay disabled 9285 | -8/Garrison | Triggered checkpoint 9337 | -8/Garrison | Build established: Scavenger-Skirmisher 9338 | -8/Garrison | Discovered exit to Factory (range 15) 9352 | -8/Garrison | Triggered checkpoint 9389 | -8/Garrison | Triggered checkpoint 9457 | -8/Garrison | Garrison Relay disabled 9581 | -8/Garrison | Garrison Relay disabled 9747 | -8/Garrison | Triggered checkpoint 9759 | -8/Garrison | Build established: Skirmisher 9805 | -8/Garrison | Garrison Relay disabled 10032 | -8/Garrison | Entered Factory 10032 | -7/Factory | Evolved 2 slots: Propulsion x1, Utility x1 10033 | -7/Factory | Identified exit to Lower Caves 10034 | -7/Factory | FarCom data flow suspended 10432 | -7/Factory | First assault squad dispatched 10439 | -7/Factory | Build established: Bothacker-Tank 10895 | -7/Factory | Garrison activated, responded to threat 11083 | -7/Factory | Sucked down chute 11083 | -7/Factory | Entered Waste 11103 | -7/Waste | 2 allies followed down the chute 11133 | -7/Waste | Warlord forces began an assault 11152 | -7/Waste | Spotted C-40 Crusher 11157 | -7/Waste | Spotted C-40 Crusher 11160 | -7/Waste | Allies destroyed C-40 Crusher 11160 | -7/Waste | Allies destroyed C-40 Crusher 11161 | -7/Waste | Spotted C-40 Crusher 11162 | -7/Waste | Spotted C-40 Crusher 11172 | -7/Waste | Allies destroyed C-40 Crusher 11178 | -7/Waste | Allies destroyed C-40 Crusher 11194 | -7/Waste | Spotted C-40 Crusher 11203 | -7/Waste | Lost 7 allies 11207 | -7/Waste | Spotted C-40 Crusher 11209 | -7/Waste | Allies destroyed C-40 Crusher 11218 | -7/Waste | Allies destroyed C-40 Crusher 11478 | -7/Waste | Discovered new exit (range 13) 11531 | -7/Waste | Build established: Scavenger-Tank 11833 | -7/Waste | Entered Factory 11833 | -7/Factory | Accompanied by 12 allies 12264 | -7/Factory | Build established: Tank 12741 | -7/Factory | Identified exit to Garrison 12804 | -7/Factory | Entered Garrison 12804 | -7/Garrison | Accompanied by 8 allies 12858 | -7/Garrison | Lost 7 allies 12968 | -7/Garrison | Triggered checkpoint 13074 | -7/Garrison | Garrison Relay disabled 13114 | -7/Garrison | Triggered checkpoint 13130 | -7/Garrison | Triggered checkpoint 13262 | -7/Garrison | Expanded RIF knowledge: Autoassimilate 13288 | -7/Garrison | Triggered checkpoint 13478 | -7/Garrison | Triggered checkpoint 13480 | -7/Garrison | Triggered checkpoint 13577 | -7/Garrison | Expanded RIF knowledge: Threat Obfuscation 13611 | -7/Garrison | Discovered new exit (range 14) 13642 | -7/Garrison | Triggered checkpoint 13663 | -7/Garrison | Build established: Scavenger-Tank 13709 | -7/Garrison | Garrison Relay disabled 13961 | -7/Garrison | Garrison Relay disabled 14095 | -7/Garrison | Discovered new exit (range 9) 14197 | -7/Garrison | Triggered checkpoint 14584 | -7/Garrison | Discovered new exit (range 12) 14588 | -7/Garrison | Triggered checkpoint 14609 | -7/Garrison | Garrison Relay disabled 14668 | -7/Garrison | Entered Factory 14668 | -6/Factory | Evolved 2 slots: Power x1, Utility x1 14720 | -6/Factory | Build established: Bothacker-Tank 15191 | -6/Factory | P-60 Hacker assimilated allied Guardian 5a 15368 | -6/Factory | First assault squad dispatched 15557 | -6/Factory | Repaired Med. Reactive Plating 15561 | -6/Factory | Sucked down chute 15561 | -6/Factory | Entered Waste 15562 | -6/Waste | Met a frightened Derelict 15601 | -6/Waste | 4 allies followed down the chute 15617 | -6/Waste | Destroyed C-40 Crusher 15640 | -6/Waste | Destroyed C-40 Crusher 15646 | -6/Waste | Spotted C-40 Crusher 15653 | -6/Waste | Allies destroyed C-40 Crusher 15690 | -6/Waste | Spotted C-40 Crusher 15701 | -6/Waste | Spotted C-40 Crusher 15810 | -6/Waste | Discovered new exit (range 11) 15939 | -6/Waste | Allies destroyed C-40 Crusher 16022 | -6/Waste | Build established: Scavenger-Tank 16103 | -6/Waste | Warlord forces began an assault 16235 | -6/Waste | Found Damper Plating 16384 | -6/Waste | Entered Factory 16384 | -6/Factory | Accompanied by 19 allies 16445 | -6/Factory | Garrison activated, responded to threat 16485 | -6/Factory | Identified exit to Garrison 16495 | -6/Factory | Entered Garrison 16495 | -6/Garrison | Accompanied by 14 allies 16536 | -6/Garrison | Lost 5 allies 16825 | -6/Garrison | Triggered checkpoint 16849 | -6/Garrison | Garrison Relay disabled 17133 | -6/Garrison | Triggered checkpoint 17139 | -6/Garrison | Triggered checkpoint 17219 | -6/Garrison | Build established: Commander-Tank 17229 | -6/Garrison | Triggered checkpoint 17274 | -6/Garrison | Lost 3 allies 17290 | -6/Garrison | Discovered new exit (range 12) 17290 | -6/Garrison | Discovered new exit (range 55) 17290 | -6/Garrison | Discovered new exit (range 72) 17290 | -6/Garrison | Discovered new exit (range 64) 17336 | -6/Garrison | Garrison Relay disabled 17357 | -6/Garrison | Expanded RIF knowledge: Program Shield 17536 | -6/Garrison | Build established: Bothacker-Tank 17561 | -6/Garrison | Triggered checkpoint 17671 | -6/Garrison | Triggered checkpoint 17690 | -6/Garrison | Expanded RIF knowledge: Signal Jamming 17727 | -6/Garrison | Garrison Relay disabled 17893 | -6/Garrison | Triggered checkpoint 17933 | -6/Garrison | Garrison Relay disabled 17951 | -6/Garrison | Triggered checkpoint 18000 | -6/Garrison | Build established: Botlord-Tank 18159 | -6/Garrison | Entered Factory 18159 | -6/Factory | Accompanied by 13 allies 18563 | -6/Factory | Garrison activated, responded to threat 19079 | -6/Factory | Discovered new exit (range 9) 19394 | -6/Factory | Learned location of Warlord (-5) 19442 | -6/Factory | Learned location of 1 exit from Cetus 19509 | -6/Factory | Learned 2 Proximity Caves zone layouts 19526 | -6/Factory | Learned 2 Extension zone layouts 19556 | -6/Factory | Discovered new exit (range 5) 19593 | -6/Factory | Learned Extension terminal intel 20259 | -6/Factory | First assault squad dispatched 20263 | -6/Factory | Entered Extension 20263 | -6/Extension | Accompanied by 13 allies 20264 | -6/Extension | Identified exit to Cetus 20266 | -6/Extension | Loaded intel: 16 terminal locations 20506 | -6/Extension | Rescued a captive Derelict 20508 | -6/Extension | Rescued a captive Derelict 20739 | -6/Extension | Rescued a captive Derelict 20770 | -6/Extension | Rescued a captive Derelict 21163 | -6/Extension | Spotted B-75 Beast 21165 | -6/Extension | Build established: Commander-Tank 21170 | -6/Extension | Allies destroyed B-75 Beast 21186 | -6/Extension | Spotted B-75 Beast 21204 | -6/Extension | Allies destroyed B-75 Beast 21255 | -6/Extension | Rescued A7 21340 | -6/Extension | Rescued a captive Derelict 21383 | -6/Extension | Rescued a captive Derelict 21470 | -6/Extension | Rescued a captive Derelict 21470 | -6/Extension | Rescued a captive Derelict 21592 | -6/Extension | Central database locked down 21636 | -6/Extension | Loaded intel: 16 interactive machine locations 21645 | -6/Extension | Discovered new exit (range 10) 21671 | -6/Extension | Learned 4 Factory zone layouts 21697 | -6/Extension | Learned Hub_04(d) terminal intel 21712 | -6/Extension | Learned location of 3 exits from Factory 21720 | -6/Extension | Identified exit to Factory 21721 | -6/Extension | Learned Factory trap positions 21725 | -6/Extension | Learned Factory repair station intel 21738 | -6/Extension | Learned location of 1 exit from Proximity Caves 21927 | -6/Extension | Entered Cetus 21927 | -6/Cetus | Accompanied by 24 allies (A7) 21932 | -6/Cetus | Acquired a Cetus Manufacturing Module code from A7 21942 | -6/Cetus | Spotted Cetus Guard 21945 | -6/Cetus | Spotted Cetus Guard 21945 | -6/Cetus | Spotted Cetus Guard 21946 | -6/Cetus | Spotted Cetus Guard 21946 | -6/Cetus | Allies destroyed Cetus Guard 21956 | -6/Cetus | Allies destroyed Cetus Guard 21957 | -6/Cetus | Allies destroyed Cetus Guard 21959 | -6/Cetus | Allies destroyed Cetus Guard 21986 | -6/Cetus | Lost 6 allies 22057 | -6/Cetus | Started Cetus Manufacturing Module 22082 | -6/Cetus | Manufactured an Enhanced Grunt 22107 | -6/Cetus | Manufactured an Enhanced Grunt 22111 | -6/Cetus | Gui. Plasma Cannon suddenly broke down 22132 | -6/Cetus | Manufactured an Enhanced Grunt 22157 | -6/Cetus | Manufactured an Enhanced Grunt 22175 | -6/Cetus | Escorted A7 to Cetus Mainframe 22181 | -6/Cetus | Found Prototype Device 22181 | -6/Cetus | Identified Exp. Thermal Shield 22182 | -6/Cetus | Manufactured an Enhanced Grunt 22206 | -6/Cetus | Discovered new exit (range 15) 22406 | -6/Cetus | Spotted Cetus Guard 22406 | -6/Cetus | Spotted Cetus Guard 22409 | -6/Cetus | Spotted Cetus Guard 22410 | -6/Cetus | Spotted Cetus Guard 22420 | -6/Cetus | Allies destroyed Cetus Guard 22425 | -6/Cetus | Destroyed Cetus Guard 22428 | -6/Cetus | Destroyed Cetus Guard 22428 | -6/Cetus | Allies destroyed Cetus Guard 22442 | -6/Cetus | Discovered exit to Factory (range 15) 22461 | -6/Cetus | Met Revision 17 22612 | -6/Cetus | Entered Archives 22612 | -6/Archives | Accompanied by 21 allies (A7) 22617 | -6/Archives | Received a hacking code to weaken MAIN.C 22689 | -6/Archives | Discovered new exit (range 15) 22761 | -6/Archives | Discovered new exit (range 15) 22980 | -6/Archives | Build established: Commander-Mutant 23016 | -6/Archives | Entered Hub_04(d) 23016 | -6/Hub_04(d) | Accompanied by 19 allies 23017 | -6/Hub_04(d) | Loaded intel: 13 terminal locations 23319 | -6/Hub_04(d) | Discovered exit to Factory (range 11) 23323 | -6/Hub_04(d) | Network Hub disabled 23331 | -6/Hub_04(d) | Spotted Lightning 23339 | -6/Hub_04(d) | Destroyed Lightning 23342 | -6/Hub_04(d) | Spotted Lightning 23348 | -6/Hub_04(d) | Garrison activated, responded to threat 23367 | -6/Hub_04(d) | Spotted Lightning 23396 | -6/Hub_04(d) | Lost 18 allies 23397 | -6/Hub_04(d) | Destroyed Lightning 23413 | -6/Hub_04(d) | Destroyed Lightning 23446 | -6/Hub_04(d) | Found Prototype Energy Cannon 23465 | -6/Hub_04(d) | Identified exit to Garrison 23465 | -6/Hub_04(d) | Entered Garrison 23495 | -6/Garrison | Expanded RIF knowledge: Hotswap 23531 | -6/Garrison | Triggered checkpoint 23594 | -6/Garrison | Garrison Relay disabled 23811 | -6/Garrison | Identified EMDS 23823 | -6/Garrison | Triggered checkpoint 24025 | -6/Garrison | Triggered checkpoint 24137 | -6/Garrison | Garrison Relay disabled 24395 | -6/Garrison | Lost 3 allies 24423 | -6/Garrison | Found Relay Coupler [Proto] 24425 | -6/Garrison | Found Relay Coupler [Proto] 24500 | -6/Garrison | Discovered exit to Factory (range 10) 24606 | -6/Garrison | Triggered checkpoint 24607 | -6/Garrison | Triggered checkpoint 24682 | -6/Garrison | Build established: Botlord-Tank 24758 | -6/Garrison | Discovered exit to Factory (range 10) 24801 | -6/Garrison | Triggered checkpoint 24882 | -6/Garrison | Lost 5 allies 24992 | -6/Garrison | Garrison Relay disabled 25277 | -6/Garrison | Spotted B-90 Cyclops 25318 | -6/Garrison | Core integrity fell below 50% 25323 | -6/Garrison | Destroyed B-90 Cyclops 25356 | -6/Garrison | Spotted B-90 Cyclops 25371 | -6/Garrison | Rewired B-75 Beast 25403 | -6/Garrison | Rewired B-86 Titan 25428 | -6/Garrison | Allies destroyed B-90 Cyclops 25555 | -6/Garrison | Discovered exit to Factory (range 10) 25607 | -6/Garrison | Triggered checkpoint 25661 | -6/Garrison | System corruption reached 10% 25759 | -6/Garrison | Build established: Botlord-Mutant 25761 | -6/Garrison | Garrison Relay disabled 25905 | -6/Garrison | Entered Factory 25905 | -5/Factory | Accompanied by 1 ally 25905 | -5/Factory | Evolved 2 slots: Power x1, Utility x1 25906 | -5/Factory | Identified exit to Upper Caves 25907 | -5/Factory | Identified exit to Factory 25909 | -5/Factory | Loaded intel: 92 trap records 25910 | -5/Factory | Loaded intel: 6 repair station locations 26475 | -5/Factory | Assembled infested ambush trap array 26542 | -5/Factory | Lost 3 allies 26878 | -5/Factory | Repaired Quantum Reactor? 26895 | -5/Factory | Fabricated Enh. Hardcell Cannon? 27093 | -5/Factory | Repaired Antimatter Reactor 27774 | -5/Factory | Learned location of 1 exit from Armory 27822 | -5/Factory | Learned 8 Factory zone layouts 27891 | -5/Factory | Learned Quarantine emergency access door positions 27908 | -5/Factory | Learned location of 2 exits from Research 27915 | -5/Factory | Learned location of 1 exit from Upper Caves 27969 | -5/Factory | Build established: Botlord-Tank 27992 | -5/Factory | Learned location of 2 exits from Upper Caves 28164 | -5/Factory | Sucked down chute 28164 | -5/Factory | Entered Waste 28176 | -5/Waste | Spotted C-40 Crusher 28186 | -5/Waste | Spotted C-40 Crusher 28205 | -5/Waste | Spotted C-40 Crusher 28217 | -5/Waste | Spotted C-40 Crusher 28221 | -5/Waste | Spotted C-40 Crusher 28224 | -5/Waste | Spotted C-40 Crusher 28334 | -5/Waste | Discovered new exit (range 12) 28707 | -5/Waste | Warlord forces began an assault 28755 | -5/Waste | Allies destroyed C-40 Crusher 28768 | -5/Waste | Allies destroyed C-40 Crusher 28782 | -5/Waste | Allies destroyed C-40 Crusher 28801 | -5/Waste | Lost 3 allies 28809 | -5/Waste | Murdered 6 allies 28812 | -5/Waste | Allies destroyed C-40 Crusher 28814 | -5/Waste | Allies destroyed C-40 Crusher 28830 | -5/Waste | Allies destroyed C-40 Crusher 28910 | -5/Waste | Build established: Botlord-Mutant 29126 | -5/Waste | Entered Factory 29126 | -5/Factory | Accompanied by 9 allies 29461 | -5/Factory | Lost 3 allies 29492 | -5/Factory | Build established: Botlord-Tank 29721 | -5/Factory | Discovered exit to Factory (range 4) 29843 | -5/Factory | P-70 Sage assimilated allied KI-9FU(g) 30072 | -5/Factory | Fabricated Enh. Quantum Rifle (x2) 30314 | -5/Factory | Identified exit to Garrison 30315 | -5/Factory | Entered Garrison 30315 | -5/Garrison | Accompanied by 6 allies 30336 | -5/Garrison | H-XX Assembler disabled 30596 | -5/Garrison | Spotted B-75 Beast 30602 | -5/Garrison | Triggered checkpoint 30605 | -5/Garrison | Triggered checkpoint 30644 | -5/Garrison | Destroyed B-75 Beast 30673 | -5/Garrison | Triggered checkpoint 30773 | -5/Garrison | Triggered checkpoint 30816 | -5/Garrison | Lost 3 allies 30941 | -5/Garrison | Triggered checkpoint 30983 | -5/Garrison | Garrison Relay disabled 31067 | -5/Garrison | Discovered exit to Factory (range 14) 31320 | -5/Garrison | Discovered exit to Factory (range 14) 31373 | -5/Garrison | Spotted B-75 Beast 31383 | -5/Garrison | Spotted B-90 Cyclops 31383 | -5/Garrison | Spotted B-86 Titan 31427 | -5/Garrison | Destroyed B-86 Titan 31455 | -5/Garrison | Rewired B-86 Titan 31489 | -5/Garrison | Destroyed B-90 Cyclops 31602 | -5/Garrison | Rewired B-86 Titan 31643 | -5/Garrison | Found Hvy. Reflective Plating 31779 | -5/Garrison | Destroyed B-75 Beast 32032 | -5/Garrison | Rescued a captive Derelict 32032 | -5/Garrison | Rescued a captive Derelict 32065 | -5/Garrison | Triggered checkpoint 32080 | -5/Garrison | Garrison Relay disabled 32415 | -5/Garrison | Expanded RIF knowledge: Watcher Feeds 32626 | -5/Garrison | Garrison Relay disabled 32735 | -5/Garrison | Triggered checkpoint 32780 | -5/Garrison | Lost 4 parts (2p2u) 32999 | -5/Garrison | Discovered exit to Factory (range 14) 33123 | -5/Garrison | Triggered checkpoint 33161 | -5/Garrison | Found embedded Infiltrators 33225 | -5/Garrison | Garrison Relay disabled 33243 | -5/Garrison | Triggered checkpoint 33472 | -5/Garrison | P-80 Master assimilated allied G9-EJO(x) 33564 | -5/Garrison | Garrison Relay disabled 33672 | -5/Garrison | System corruption reached 10% 33673 | -5/Garrison | Entered Factory 33673 | -4/Factory | Accompanied by 5 allies 33673 | -4/Factory | Evolved 2 slots: Utility x2 33734 | -4/Factory | Identified exit to Upper Caves 33791 | -4/Factory | Repaired Hyb. Antimatter Reactor 33823 | -4/Factory | Repaired Hvy. Treads 34087 | -4/Factory | Lost 5 allies 34139 | -4/Factory | Garrison activated, responded to threat 34423 | -4/Factory | First assault squad dispatched 34673 | -4/Factory | Identified exit to Garrison 34673 | -4/Factory | Entered Garrison 34686 | -4/Garrison | Spotted B-90 Cyclops 34693 | -4/Garrison | Rewired B-90 Cyclops 34699 | -4/Garrison | Rewired B-86 Titan 34713 | -4/Garrison | Allies destroyed B-90 Cyclops 34832 | -4/Garrison | Build established: Botlord-Mutant 35007 | -4/Garrison | Triggered checkpoint 35075 | -4/Garrison | Garrison Relay disabled 35297 | -4/Garrison | DAS Turret deployed 35314 | -4/Garrison | Triggered checkpoint 35338 | -4/Garrison | Triggered checkpoint 35485 | -4/Garrison | Discovered new exit (range 8) 35531 | -4/Garrison | Triggered checkpoint 35554 | -4/Garrison | Build established: Botlord-Tank 35572 | -4/Garrison | Garrison Relay disabled 35664 | -4/Garrison | Expanded RIF knowledge: Structural Interface 35945 | -4/Garrison | Triggered checkpoint 36050 | -4/Garrison | Discovered new exit (range 3) 36105 | -4/Garrison | Triggered checkpoint 36161 | -4/Garrison | Lost 3 parts (1p2u) 36297 | -4/Garrison | Garrison Relay disabled 36538 | -4/Garrison | Triggered checkpoint 36778 | -4/Garrison | Destroyed Cyclops 7a 36956 | -4/Garrison | Discovered new exit (range 15) 36985 | -4/Garrison | Triggered checkpoint 37043 | -4/Garrison | Garrison Relay disabled 37329 | -4/Garrison | Found embedded Infiltrators 37384 | -4/Garrison | Entered Research 37384 | -3/Research | Accompanied by 4 allies 37384 | -3/Research | Evolved 2 slots: Propulsion x1, Utility x1 37385 | -3/Research | Identified exit to Quarantine 37386 | -3/Research | Identified exit to Armory 37386 | -3/Research | Identified exit to Research 37584 | -3/Research | Revision forces began assault on 0b10 37617 | -3/Research | Met up with Revision 17++ 37753 | -3/Research | Build established: Botlord-Mutant 38084 | -3/Research | Research terminal network offline 38782 | -3/Research | Spotted Striker 38832 | -3/Research | Lost 8 allies 38942 | -3/Research | Lost 3 allies 39114 | -3/Research | Build established: Botlord-Tank 39562 | -3/Research | Entered Quarantine 39562 | -3/Quarantine | Accompanied by 2 allies 39612 | -3/Quarantine | Lost 4 allies 39620 | -3/Quarantine | Found Sigix Corpse 39901 | -3/Quarantine | Repaired Exp. Thermal Shield 40164 | -3/Quarantine | Found Prototype Device 40164 | -3/Quarantine | Identified Exp. EM Disruption Field 40574 | -3/Quarantine | Found Unknown Protection 40574 | -3/Quarantine | Identified Adv. Powered Armor 40772 | -3/Quarantine | System corruption reached 10% 40877 | -3/Quarantine | Found Alien Artifact 40877 | -3/Quarantine | Identified Dimensional Node Initializer 40877 | -3/Quarantine | Initialized slip node 40885 | -3/Quarantine | Found Dimensional Node Initializer 40896 | -3/Quarantine | Found Alien Artifact 41042 | -3/Quarantine | Found Alien Artifact 41042 | -3/Quarantine | Identified Core Reset Matrix 41042 | -3/Quarantine | Identified Transdimensional Reconstructor 41042 | -3/Quarantine | Used Core Reset Matrix 41046 | -3/Quarantine | Detected hypermatrix surge 41046 | -3/Quarantine | Sensed 6 artifacts in vicinity 41047 | -3/Quarantine | Warped through subspace to slip node 41052 | -3/Quarantine | Found Dimensional Node Initializer 41077 | -3/Quarantine | Found Transdimensional Reconstructor 41081 | -3/Quarantine | Found Hpw. Transdimensional Reconstructor 41084 | -3/Quarantine | Found Hpw. Transdimensional Reconstructor 41322 | -3/Quarantine | Build established: Scavenger-Tank 41431 | -3/Quarantine | Found Sigix Broadsword 41717 | -3/Quarantine | Build established: Scavenger-Mutant 42408 | -3/Quarantine | DAS Turret deployed 42812 | -3/Quarantine | First assault squad dispatched 42916 | -3/Quarantine | Lost 4 parts (1p3n) 42918 | -3/Quarantine | Build established: Scavenger-Tank 42943 | -3/Quarantine | Garrison activated, responded to threat 43005 | -3/Quarantine | Lost 3 parts (1p2u) 43043 | -3/Quarantine | Scanned by Researcher 43057 | -3/Quarantine | Warped through subspace to slip node 43075 | -3/Quarantine | Lost 3 parts (2u1w) 43141 | -3/Quarantine | Met incapacitated Sigix Warrior 43141 | -3/Quarantine | Lockdown squad dispatched 43145 | -3/Quarantine | Acquired the access code to the Sigix quarantine chamber 43148 | -3/Quarantine | Unlocked Sigix quarantine chamber 43154 | -3/Quarantine | Found Sigix Containment Pod 43334 | -3/Quarantine | Crushed by falling debris 43338 | -3/Quarantine | Crushed by falling debris 43347 | -3/Quarantine | Build established: Scavenger-Mutant 43368 | -3/Quarantine | Crushed by falling debris 43369 | -3/Quarantine | System corruption reached 30% 43453 | -3/Quarantine | Warped through subspace to slip node 43588 | -3/Quarantine | Core integrity fell below 50% 43655 | -3/Quarantine | Crushed by falling debris 43658 | -3/Quarantine | Crushed by falling debris 43658 | -3/Quarantine | Core integrity fell below 20% 43658 | -3/Quarantine | Warped through subspace to slip node 43676 | -3/Quarantine | Destroyed by Q563-i with Advanced KE Penetrator Last Messages --------------- 43658_ The unstable cave ceiling collapses. 43658_ Crushed by falling debris. 43658_ Imp. Targeting Computer destroyed. 43658_ System corrupted by crushing effect (+3). 43658_ Warped through subspace, drawn to slip node. 43659_ Q563-i: IFF CHECK FAIL. 43662_ Acquired 4 matter. 43664_ Acquired Unknown Flight Unit. 43664_ Identified Cesium-ion Thruster. 43670_ System corrupted: Matter fused (-10). 43671_ C-30 ARC bursts open, deploying its payload. 43671_ G-73 Enforcer unfolds itself. 43671_ G-67 Veteran unfolds itself. 43671_ I-47 Archangel unfolds itself. 43672_ K-01 Serf collects debris. 43673_ Extracted 31 matter. 43674_ Penetrated by Slug. 43674_ I-47 Archangel suffers critical hit (Destroy). 43674_ I-47 Archangel destroyed. 43675_ K-01 Serf collects debris. Map ----- +----------------------------------------------------+ | ?????# """ """ + + """ # + """"" # | | ?????# ""T"" # % # "" #?#%""""" # | | ?????# # # "T * ### *["/ # | | ?????# # # "" * + + !%""" # | | ?????# # # ###%|[! # | | ?????########+## #####+#####?#[= % !%# | | ????????????# % ##### ###########+""## | | ????????????# | | ????????????# | | ????????????# | | ????????????# """""" """"""" """"""" """ | | ?????? "????# """"""" """"""" """"""" """ | | ????? """??# """"""" """"""" """""" """ | | ???? """ # | | ???? """ + | | ???? """ # | | ????? """??# | | ???m?? "????# ##################+##### | | ????????????# ## """!!#??# [ #???# | | ????????????# ## " "! #??# #???#* | | ????????????# ##"" ""#??#"S #???#% | | ????######### ##T "#??#""" #???# | | ???? # ## #??# ""[[ #???# | | ???? """ "" # = ## #??# !=[[##### | | ???# """ ""*#!==!##;#############+### | | ???# """ T !#![%*@ /!]][*] |Q%= % ! | | ???# = +^!!g !! *[=& k=! %% | | ???# """ ""%#|ggg !! ![!!/ =! [ [! ! | | ???# """ !%#=| #################+### | | ???? """ ! # #????###??????? [=%*###+## | | ???? = # #????????????# ""=[# | | ????######### #????????????# T" # """ | | ????????????# #????????????# """ # """ | | ????????????# #????????????# # """ | | ????????????# #????????????# = # """ | | ????????????# #????????????######## """ | | ????????????# #???????????????????# | | ????????????# #???????????????????# | | ????????????# #???????????????????###+## | | ????????????# #?????????????????????# #? | | ????????????# !####??????????????????# #? | | ????????????# % #??????????????????# #? | | ???########## #??????????????????# #? | | ???? # #??????????????????# #? | | ???? """ ! # ####??#######?????????# #? | | ???# """ # ####### #????????##%## | | ???# """ # "" ##########[[ # | | ???# """ + " # | | ???# """ # ########## # | | ???# """ # ####### #????????####" | +----------------------------------------------------+ Best States ------------- Heat Dissipation 96 Coolant Potential 100 Energy Generation 62 Energy Capacity 2075 Matter Stores 550 Matter Capacity 550 Sight Range 22 Robot Scan Range 20 Terrain Scan Density 10 Jamming Range 12 Power Amplification 30 EM Shielding 4 Armor Coverage 3200 Resistance: KI 30 Resistance: TH 30 Resistance: EM 90 Core Shielding 20 Weapon Cycling 20 Phase Shifting 10 Evasion (%) 61 Targeting Accuracy 8 Target Analysis 8 Recoil Reduction 5 Offensive Hacking 12 Relay Coupler Types 5 Relay Coupler Value 107 Item Schematics ----------------- Hvy. Neutron Cannon | -3/Quarantine | Archive Hvy. Hardcell Cannon | -3/Quarantine | Archive Centrium Heavy Armor Plating | -3/Quarantine | Archive Spectral Analyzer | -3/Quarantine | Archive Robot Schematics ------------------ None Fabricated ------------ Enh. Hardcell Cannon | x2 | -5/Factory | Preloaded Enh. Quantum Rifle | x2 | -5/Factory | Preloaded Repaired ---------- Cooling System | 54% | -8/Materials Hvy. Armor Plating | 51% | -8/Materials Med. Reactive Plating | 29% | -6/Factory Quantum Reactor | 5% | -5/Factory Antimatter Reactor | 11% | -5/Factory Hyb. Antimatter Reactor | 8% | -4/Factory Hvy. Treads | 13% | -4/Factory Exp. Thermal Shield | 50% | -3/Quarantine Alien Tech Used ----------------- Dimensional Node Initializer Core Reset Matrix Transdimensional Reconstructor Sigix Broadsword High-powered Transdimensional Reconstructor Achievements -------------- None Challenges ------------ None Game ------ Seed LobotomyPlexusNanovents Manual? 0 Play Time 08:02:48 Cumulative 522.4 hours Start 2025.06.18 @ 18:57:43 End 2025.08.22 @ 16:14:00 Sessions 22 Manual Loads 0 Difficulty Rogue Special Mode None Game No. 224 Rogue 224 Adventurer 0 Explorer 0 Win Type - Total 19 Types 10/2/6/1/0/0/0/0/0/0 Lore% 90 Gallery% 87 Achievement% 78 Wizard Run 0 Options --------- Layout 0 ASCII 0 Keyboard 1 Movement Numpad Keybinds 0 Fullscreen 2 Font 12/Smallcaps Map View 76x50 Zoom Use 0% Tactical HUD 1 Map Filters NONE Filters NONE Steam 1 RUN: c99470c8-67ac-4f34-b2e8-ae0af29474dc